Publisher Label,Publisher URI,"Supplier","Net Amount £","Organisational Unit","Merchant Category Code","Purpose","Payment Date"
"Wolverhampton City Council","http://opendatacommunities.org/id/metropolitan-district-council/wolverhampton","ARGOS WOLVERHAMPTO","25.00","LAC Transitions Team","5310","Client Allowances","31/10/2018"
"Wolverhampton City Council","http://opendatacommunities.org/id/metropolitan-district-council/wolverhampton","Trainline","138.68","Service Director Adults","4112","Public Transport","31/10/2018"
"Wolverhampton City Council","http://opendatacommunities.org/id/metropolitan-district-council/wolverhampton","WWW.LAMPSHOPONLINE.CO.","67.80","Technical Material","5072","Equipment - Purchase","31/10/2018"
"Wolverhampton City Council","http://opendatacommunities.org/id/metropolitan-district-council/wolverhampton","NATIONWIDE","200.00","EIP Locality 2","6011","Grant Payments","31/10/2018"
"Wolverhampton City Council","http://opendatacommunities.org/id/metropolitan-district-council/wolverhampton","NATIONWIDE","240.00","EIP Locality 2","6011","Grant Payments","31/10/2018"
"Wolverhampton City Council","http://opendatacommunities.org/id/metropolitan-district-council/wolverhampton","DUNELM (SOFT FURNISHIN","29.17","LAC Transitions Team","5714","Client Allowances","31/10/2018"
"Wolverhampton City Council","http://opendatacommunities.org/id/metropolitan-district-council/wolverhampton","POST OFFICE COUNTER","79.65","Fostering Team & Allowances","9402","Comms - Postage","31/10/2018"
"Wolverhampton City Council","http://opendatacommunities.org/id/metropolitan-district-council/wolverhampton","PREMIER INN","77.49","Headstart Phase 3","3811","Accommodation Costs","31/10/2018"
"Wolverhampton City Council","http://opendatacommunities.org/id/metropolitan-district-council/wolverhampton","Trainline","71.53","Headstart Phase 3","4112","Public Transport","31/10/2018"
"Wolverhampton City Council","http://opendatacommunities.org/id/metropolitan-district-council/wolverhampton","AMZN Mktp UK MT5BP0Q74","8.75","LAC Team","5942","Books","31/10/2018"
"Wolverhampton City Council","http://opendatacommunities.org/id/metropolitan-district-council/wolverhampton","PREMIER INN","66.00","SWP - Infrastructure","3811","Accommodation Costs","31/10/2018"
"Wolverhampton City Council","http://opendatacommunities.org/id/metropolitan-district-council/wolverhampton","PAYPAL  BBBUYER","126.62","Strategic ICTS (ICT Serv Budget)","5732","Equipment - Purchase","31/10/2018"
"Wolverhampton City Council","http://opendatacommunities.org/id/metropolitan-district-council/wolverhampton","Virgin Trains","50.90","LAC Team","4112","Public Transport","31/10/2018"
"Wolverhampton City Council","http://opendatacommunities.org/id/metropolitan-district-council/wolverhampton","Trainline","201.17","Head of Strategic Commissioning � People","4112","Public Transport","31/10/2018"
"Wolverhampton City Council","http://opendatacommunities.org/id/metropolitan-district-council/wolverhampton","ASDA STORE","21.80","Wolverhampton Indoor and Open Market","5411","Provisions (Not for resale)","31/10/2018"
"Wolverhampton City Council","http://opendatacommunities.org/id/metropolitan-district-council/wolverhampton","WILKO RETAIL LIMIT","72.25","Wolverhampton Indoor and Open Market","5722","Equipment - Purchase","31/10/2018"
"Wolverhampton City Council","http://opendatacommunities.org/id/metropolitan-district-council/wolverhampton","CARVER/WOLVERHAMPTON/L","50.44","Culwell Street Depot","5211","Materials","31/10/2018"
"Wolverhampton City Council","http://opendatacommunities.org/id/metropolitan-district-council/wolverhampton","Trainline","19.76","SEN Special Education Admin","4112","Public Transport","31/10/2018"
"Wolverhampton City Council","http://opendatacommunities.org/id/metropolitan-district-council/wolverhampton","Trainline","107.29","Children & Young People Support Costs","4112","Public Transport","31/10/2018"
"Wolverhampton City Council","http://opendatacommunities.org/id/metropolitan-district-council/wolverhampton","CINEWORLD","16.80","LAC Team","7922","Financial Assistance In Exceptional Circ","31/10/2018"
"Wolverhampton City Council","http://opendatacommunities.org/id/metropolitan-district-council/wolverhampton","CINEWORLD","16.80","LAC Team","7922","Financial Assistance In Exceptional Circ","31/10/2018"
"Wolverhampton City Council","http://opendatacommunities.org/id/metropolitan-district-council/wolverhampton","ARGOS LTD","23.33","LAC Transitions Team","5310","Client Allowances","31/10/2018"
"Wolverhampton City Council","http://opendatacommunities.org/id/metropolitan-district-council/wolverhampton","CITY OF WOLVERHAMPTON","10.00","LAC Transitions Team","9399","Client Allowances","31/10/2018"
"Wolverhampton City Council","http://opendatacommunities.org/id/metropolitan-district-council/wolverhampton","PREMIER INN","211.00","Members Expenses","3811","Accommodation Costs","31/10/2018"
"Wolverhampton City Council","http://opendatacommunities.org/id/metropolitan-district-council/wolverhampton","Cross Country Trains","45.60","Licensing - General","4112","Public Transport","31/10/2018"
"Wolverhampton City Council","http://opendatacommunities.org/id/metropolitan-district-council/wolverhampton","UNTOUCHABLES","19.80","Education Catering - General Overheads","5231","Materials","31/10/2018"
"Wolverhampton City Council","http://opendatacommunities.org/id/metropolitan-district-council/wolverhampton","EBUYER (UK) LTD","283.32","Macmillan Welfare Rights","5722","Equipment - Purchase","31/10/2018"
"Wolverhampton City Council","http://opendatacommunities.org/id/metropolitan-district-council/wolverhampton","WOLVERHAMPTON T/O","104.50","Upper Pendeford Farm Childrens Home","4112","Public Transport","31/10/2018"
"Wolverhampton City Council","http://opendatacommunities.org/id/metropolitan-district-council/wolverhampton","CITY OF WOLVERHAMPTON","10.00","Planning","9399","Services - Fees and Charges","31/10/2018"
"Wolverhampton City Council","http://opendatacommunities.org/id/metropolitan-district-council/wolverhampton","WOLVERHAMPTON T/O","194.00","Strategic ICTS (ICT Serv Budget)","4112","Public Transport","30/10/2018"
"Wolverhampton City Council","http://opendatacommunities.org/id/metropolitan-district-council/wolverhampton","WWW.WMCA.CO.UK","56.50","IMPACT","9399","Services - Fees and Charges","30/10/2018"
"Wolverhampton City Council","http://opendatacommunities.org/id/metropolitan-district-council/wolverhampton","LOYD 37 CHURCH STREET","200.00","EIP Locality 8","6011","Grant Payments","30/10/2018"
"Wolverhampton City Council","http://opendatacommunities.org/id/metropolitan-district-council/wolverhampton","AMZN Mktp UK MT8H46HF4","27.25","Towers Outdoor Education Centre","5942","Fixtures and Fittings - Purchases","30/10/2018"
"Wolverhampton City Council","http://opendatacommunities.org/id/metropolitan-district-council/wolverhampton","Trainline","189.38","General Housing Administration","4112","Public Transport","30/10/2018"
"Wolverhampton City Council","http://opendatacommunities.org/id/metropolitan-district-council/wolverhampton","FACEBK  CFPTBKAAR2","500.00","Communications & Marketing - General","7311","Marketing \ Non-staff advertising","30/10/2018"
"Wolverhampton City Council","http://opendatacommunities.org/id/metropolitan-district-council/wolverhampton","000002200500000","100.00","Headstart Phase 3","6011","Financial Assistance In Exceptional Circ","30/10/2018"
"Wolverhampton City Council","http://opendatacommunities.org/id/metropolitan-district-council/wolverhampton","Trainline","175.87","Headstart Phase 3","4112","Public Transport","30/10/2018"
"Wolverhampton City Council","http://opendatacommunities.org/id/metropolitan-district-council/wolverhampton","Amazon.co.uk MT4BA4BM4","20.40","Bert Williams Leisure Centre","5969","Equipment - Purchase","30/10/2018"
"Wolverhampton City Council","http://opendatacommunities.org/id/metropolitan-district-council/wolverhampton","SAINSBURYS PFS (1340)","1.67","Mayoral Expenses","5541","Vehicle Maintenance - Repairs","30/10/2018"
"Wolverhampton City Council","http://opendatacommunities.org/id/metropolitan-district-council/wolverhampton","SAINSBURYS SACAT (2340","3.00","Mayoral Expenses","5411","Hospitality","30/10/2018"
"Wolverhampton City Council","http://opendatacommunities.org/id/metropolitan-district-council/wolverhampton","Amazon.co.uk MT76J6BX4","19.16","Central Baths","5969","Equipment - Purchase","30/10/2018"
"Wolverhampton City Council","http://opendatacommunities.org/id/metropolitan-district-council/wolverhampton","HM PASSPORT OFFICE","63.50","LAC Team","9399","Financial Assistance In Exceptional Circ","30/10/2018"
"Wolverhampton City Council","http://opendatacommunities.org/id/metropolitan-district-council/wolverhampton","WWW.SANDWELL.GOV.UK","30.00","LAC Team","9399","Financial Assistance In Exceptional Circ","30/10/2018"
"Wolverhampton City Council","http://opendatacommunities.org/id/metropolitan-district-council/wolverhampton","WOLVERHAMPTON T/O","7.80","Art Gallery","4112","Public Transport","30/10/2018"
"Wolverhampton City Council","http://opendatacommunities.org/id/metropolitan-district-council/wolverhampton","ROYAL CARPETS","300.00","LAC Transitions Team","5713","Client Allowances","30/10/2018"
"Wolverhampton City Council","http://opendatacommunities.org/id/metropolitan-district-council/wolverhampton","DUNELM (SOFT FURNISHIN","40.00","Duke Street Bungalows","5714","R4010","30/10/2018"
"Wolverhampton City Council","http://opendatacommunities.org/id/metropolitan-district-council/wolverhampton","ASDA SUPERSTORE","21.42","EIP Locality 3","5411","Cleaning Supplies and Materials","30/10/2018"
"Wolverhampton City Council","http://opendatacommunities.org/id/metropolitan-district-council/wolverhampton","WAITROSE 696","13.14","EIP Locality 3","5411","Grant Payments","30/10/2018"
"Wolverhampton City Council","http://opendatacommunities.org/id/metropolitan-district-council/wolverhampton","WILKO RETAIL LIMIT","17.79","Education And Access","5722","Equipment - Purchase","30/10/2018"
"Wolverhampton City Council","http://opendatacommunities.org/id/metropolitan-district-council/wolverhampton","ASDA GROCERIES ONLINE","81.21","Ernest Bold Court","5411","Provisions (Not for resale)","30/10/2018"
"Wolverhampton City Council","http://opendatacommunities.org/id/metropolitan-district-council/wolverhampton","AMZN Mktp UK MT9DX3BS4","12.95","Planning","5942","Stationery","30/10/2018"
"Wolverhampton City Council","http://opendatacommunities.org/id/metropolitan-district-council/wolverhampton","WWW.KATHYBRODIE.COM","25.00","School Improvement","8999","Services - Professional Fees","29/10/2018"
"Wolverhampton City Council","http://opendatacommunities.org/id/metropolitan-district-council/wolverhampton","Central Taxis Limited","4.90","CIN/CP Social Work Unit - Area 8","4121","No Recourse to Public Funds","29/10/2018"
"Wolverhampton City Council","http://opendatacommunities.org/id/metropolitan-district-council/wolverhampton","WOLVERHAMPTON CC","5.42","Headstart Phase 3","7523","Parking Fees","29/10/2018"
"Wolverhampton City Council","http://opendatacommunities.org/id/metropolitan-district-council/wolverhampton","THE HIND HOTEL","90.00","Adoption and Residence Team & Allowances","7011","Accommodation Costs","29/10/2018"
"Wolverhampton City Council","http://opendatacommunities.org/id/metropolitan-district-council/wolverhampton","THE HIND HOTEL","180.00","Adoption and Residence Team & Allowances","7011","Accommodation Costs","29/10/2018"
"Wolverhampton City Council","http://opendatacommunities.org/id/metropolitan-district-council/wolverhampton","AMZN MKTP UK MT0VZ5XA4","12.52","Adoption and Residence Team & Allowances","5942","Equipment - Health and Safety","29/10/2018"
"Wolverhampton City Council","http://opendatacommunities.org/id/metropolitan-district-council/wolverhampton","WWW.ICO.GOV.UK","40.00","Members Expenses","9399","Subscriptions","29/10/2018"
"Wolverhampton City Council","http://opendatacommunities.org/id/metropolitan-district-council/wolverhampton","WWW.ICO.GOV.UK","40.00","Members Expenses","9399","Subscriptions","29/10/2018"
"Wolverhampton City Council","http://opendatacommunities.org/id/metropolitan-district-council/wolverhampton","SAINSBURYS SACAT (2340","19.49","Civic Centre Catering","5411","Provisions (Not for resale)","29/10/2018"
"Wolverhampton City Council","http://opendatacommunities.org/id/metropolitan-district-council/wolverhampton","ASDA GROCERIES ONLINE","248.27","Duke Street Bungalows","5411","Provisions (Not for resale)","29/10/2018"
"Wolverhampton City Council","http://opendatacommunities.org/id/metropolitan-district-council/wolverhampton","SAINSBURYS","200.00","Duke Street Bungalows","6011","Provisions (Not for resale)","29/10/2018"
"Wolverhampton City Council","http://opendatacommunities.org/id/metropolitan-district-council/wolverhampton","SAINSBURYS SACAT 2040","8.60","Duke Street Bungalows","5411","Provisions (Not for resale)","29/10/2018"
"Wolverhampton City Council","http://opendatacommunities.org/id/metropolitan-district-council/wolverhampton","PLUMBINGFORCE","99.00","Adult Services - West","1711","R&M - Departmental response (external)","29/10/2018"
"Wolverhampton City Council","http://opendatacommunities.org/id/metropolitan-district-council/wolverhampton","SALOP LEISURE LTD","712.50","Civic Centre","7033","R4007","29/10/2018"
"Wolverhampton City Council","http://opendatacommunities.org/id/metropolitan-district-council/wolverhampton","SALOP LEISURE LTD","774.75","Civic Centre","7033","R4007","29/10/2018"
"Wolverhampton City Council","http://opendatacommunities.org/id/metropolitan-district-council/wolverhampton","WP-CENTRAL TAXIS L","30.00","CIN/CP Social Work Unit - Area 8","4121","Public Transport","29/10/2018"
"Wolverhampton City Council","http://opendatacommunities.org/id/metropolitan-district-council/wolverhampton","CURRYS ONLINE","233.33","EIP Locality 5","5732","Grant Payments","29/10/2018"
"Wolverhampton City Council","http://opendatacommunities.org/id/metropolitan-district-council/wolverhampton","AMZN MKTP UK MT8TA35C4","17.47","Members Expenses","5942","Equipment - Purchase","29/10/2018"
"Wolverhampton City Council","http://opendatacommunities.org/id/metropolitan-district-council/wolverhampton","Virgin Trains","150.00","Adoption and Residence Team & Allowances","4112","Public Transport","29/10/2018"
"Wolverhampton City Council","http://opendatacommunities.org/id/metropolitan-district-council/wolverhampton","POST OFFICE COUNTER","8.60","Adoption and Residence Team & Allowances","9402","Comms - Postage","29/10/2018"
"Wolverhampton City Council","http://opendatacommunities.org/id/metropolitan-district-council/wolverhampton","THE POST OFFICE","67.00","Fostering Team & Allowances","9402","Comms - Postage","29/10/2018"
"Wolverhampton City Council","http://opendatacommunities.org/id/metropolitan-district-council/wolverhampton","GOOGLE  ADS9680351324","500.00","Communications & Marketing - General","5968","Subscriptions","29/10/2018"
"Wolverhampton City Council","http://opendatacommunities.org/id/metropolitan-district-council/wolverhampton","SAINSBURYS SACAT (2340","2.20","Mayoral Expenses","5411","Hospitality","29/10/2018"
"Wolverhampton City Council","http://opendatacommunities.org/id/metropolitan-district-council/wolverhampton","LEARNING AND WORK INST","140.00","Admin & Support","8398","Services - Supplies & Services to users","29/10/2018"
"Wolverhampton City Council","http://opendatacommunities.org/id/metropolitan-district-council/wolverhampton","LEARNING AND WORK INST","140.00","Admin & Support","8398","Services - Supplies & Services to users","29/10/2018"
"Wolverhampton City Council","http://opendatacommunities.org/id/metropolitan-district-council/wolverhampton","Trainline","451.10","LAC Education Team (LACE)","4112","Public Transport","29/10/2018"
"Wolverhampton City Council","http://opendatacommunities.org/id/metropolitan-district-council/wolverhampton","ASDA SUPERSTORE","3.20","Youth Offending Team","5411","Provisions (Not for resale)","29/10/2018"
"Wolverhampton City Council","http://opendatacommunities.org/id/metropolitan-district-council/wolverhampton","CITY OF WOLVERHAMPTON","20.00","Adoption and Residence Team & Allowances","9399","Services - Fees and Charges","29/10/2018"
"Wolverhampton City Council","http://opendatacommunities.org/id/metropolitan-district-council/wolverhampton","CITY OF WOLVERHAMPTON","10.00","Adoption and Residence Team & Allowances","9399","Services - Fees and Charges","29/10/2018"
"Wolverhampton City Council","http://opendatacommunities.org/id/metropolitan-district-council/wolverhampton","Virgin Trains","150.00","Adoption and Residence Team & Allowances","4112","Public Transport","29/10/2018"
"Wolverhampton City Council","http://opendatacommunities.org/id/metropolitan-district-council/wolverhampton","POST OFFICE COUNTER","470.00","Adoption and Residence Team & Allowances","9402","Comms - Postage","29/10/2018"
"Wolverhampton City Council","http://opendatacommunities.org/id/metropolitan-district-council/wolverhampton","HOTELS.COM152843261561","65.01","Adoption and Residence Team & Allowances","4722","Accommodation Costs","29/10/2018"
"Wolverhampton City Council","http://opendatacommunities.org/id/metropolitan-district-council/wolverhampton","ITUNES.COM/BILL","0.79","Strategic ICTS (ICT Serv Budget)","5735","Computing - Purchase of Software","29/10/2018"
"Wolverhampton City Council","http://opendatacommunities.org/id/metropolitan-district-council/wolverhampton","EBUYER (UK) LTD","11.63","Strategic ICTS (ICT Serv Budget)","5722","Equipment - Purchase","29/10/2018"
"Wolverhampton City Council","http://opendatacommunities.org/id/metropolitan-district-council/wolverhampton","123 REG R/T","9.99","Strategic ICTS (ICT Serv Budget)","5968","Subscriptions","29/10/2018"
"Wolverhampton City Council","http://opendatacommunities.org/id/metropolitan-district-council/wolverhampton","LEGOLAND DISCOVERY CEN","20.50","LAC Team","7991","Financial Assistance In Exceptional Circ","29/10/2018"
"Wolverhampton City Council","http://opendatacommunities.org/id/metropolitan-district-council/wolverhampton","WOLVERHAMPTON T/O","18.00","Mental Health Assessment & Care Mgmt","4112","Public Transport","29/10/2018"
"Wolverhampton City Council","http://opendatacommunities.org/id/metropolitan-district-council/wolverhampton","BRITANNIA","159.50","MASH","7011","No Recourse to Public Funds","29/10/2018"
"Wolverhampton City Council","http://opendatacommunities.org/id/metropolitan-district-council/wolverhampton","PO WILLENHALL RD 5497","30.00","EIP Locality 1","6011","Grant Payments","29/10/2018"
"Wolverhampton City Council","http://opendatacommunities.org/id/metropolitan-district-council/wolverhampton","CardtronicsUK","50.00","EIP Locality 3","6011","Grant Payments","29/10/2018"
"Wolverhampton City Council","http://opendatacommunities.org/id/metropolitan-district-council/wolverhampton","ASDA GROCERIES ONLINE","76.46","Ernest Bold Court","5411","Provisions (Not for resale)","29/10/2018"
"Wolverhampton City Council","http://opendatacommunities.org/id/metropolitan-district-council/wolverhampton","WWW.ICO.GOV.UK","40.00","Members Expenses","9399","Subscriptions","29/10/2018"
"Wolverhampton City Council","http://opendatacommunities.org/id/metropolitan-district-council/wolverhampton","PREMIER INN","157.92","Members Expenses","3811","Accommodation Costs","29/10/2018"
"Wolverhampton City Council","http://opendatacommunities.org/id/metropolitan-district-council/wolverhampton","MIDLAND HOTEL","825.00","Members Expenses","7011","Accommodation Costs","29/10/2018"
"Wolverhampton City Council","http://opendatacommunities.org/id/metropolitan-district-council/wolverhampton","PORTER AND WOODMAN","75.90","Headstart - Employability","5947","Equipment - Purchase","26/10/2018"
"Wolverhampton City Council","http://opendatacommunities.org/id/metropolitan-district-council/wolverhampton","Virgin Trains","48.00","LAC Team","4112","Public Transport","26/10/2018"
"Wolverhampton City Council","http://opendatacommunities.org/id/metropolitan-district-council/wolverhampton","Virgin Trains","16.70","Children & Young People Support Costs","4112","Public Transport","26/10/2018"
"Wolverhampton City Council","http://opendatacommunities.org/id/metropolitan-district-council/wolverhampton","Wix.com","46.57","Technical Support","5817","Computing - Purchase of Software","26/10/2018"
"Wolverhampton City Council","http://opendatacommunities.org/id/metropolitan-district-council/wolverhampton","WP-CENTRAL TAXIS L","138.00","LAC Team","4121","Client Transport","26/10/2018"
"Wolverhampton City Council","http://opendatacommunities.org/id/metropolitan-district-council/wolverhampton","Trainline","51.51","CIN/CP Social Work Unit - Area 4","4112","Section 17","26/10/2018"
"Wolverhampton City Council","http://opendatacommunities.org/id/metropolitan-district-council/wolverhampton","CITY OF WOLVERHAMPTON","60.00","Head of Service - CINCP","9399","Services - Professional Fees","26/10/2018"
"Wolverhampton City Council","http://opendatacommunities.org/id/metropolitan-district-council/wolverhampton","CUMMINGS BROTHERS LOCK","2.50","Adult Services - North","7399","Equipment - Purchase","26/10/2018"
"Wolverhampton City Council","http://opendatacommunities.org/id/metropolitan-district-council/wolverhampton","Trainline","83.31","Inclusion Support","4112","Public Transport","26/10/2018"
"Wolverhampton City Council","http://opendatacommunities.org/id/metropolitan-district-council/wolverhampton","TUDOR ENVIRONMENTAL","59.80","Transportation General","5261","R4007","26/10/2018"
"Wolverhampton City Council","http://opendatacommunities.org/id/metropolitan-district-council/wolverhampton","Amazon Prime","-7.99","CIN/CP Social Work Unit - Area 8","5968","Subscriptions","26/10/2018"
"Wolverhampton City Council","http://opendatacommunities.org/id/metropolitan-district-council/wolverhampton","AMZN MKTP UK MT7B51GC4","7.23","Parks - South West Area Management","5942","Equipment - Purchase","26/10/2018"
"Wolverhampton City Council","http://opendatacommunities.org/id/metropolitan-district-council/wolverhampton","RELCROSS LTD","265.72","Parks/Open Spaces - R & M","5046","Equipment - Purchase","26/10/2018"
"Wolverhampton City Council","http://opendatacommunities.org/id/metropolitan-district-council/wolverhampton","Virgin Trains","102.00","Members Expenses","4112","Public Transport","26/10/2018"
"Wolverhampton City Council","http://opendatacommunities.org/id/metropolitan-district-council/wolverhampton","WWW.OYPLA.COM","39.99","Parent/Partnership Service","5722","Equipment - Purchase","26/10/2018"
"Wolverhampton City Council","http://opendatacommunities.org/id/metropolitan-district-council/wolverhampton","CITY OF WOLVERHAMPTON","11.00","CIN/CP Social Work Unit - Area 7","9399","Section 17","26/10/2018"
"Wolverhampton City Council","http://opendatacommunities.org/id/metropolitan-district-council/wolverhampton","Virgin Trains","11.20","Quality Assurance & Policies","4112","Public Transport","26/10/2018"
"Wolverhampton City Council","http://opendatacommunities.org/id/metropolitan-district-council/wolverhampton","Virgin Trains","8.30","Quality Assurance & Policies","4112","Public Transport","26/10/2018"
"Wolverhampton City Council","http://opendatacommunities.org/id/metropolitan-district-council/wolverhampton","AMZN Mktp UK MT7604GG4","3.59","EIP Locality 8","5942","Equipment - Purchase","26/10/2018"
"Wolverhampton City Council","http://opendatacommunities.org/id/metropolitan-district-council/wolverhampton","000002200500000","200.00","Childrens with Disabilities Team","6011","No Recourse to Public Funds","26/10/2018"
"Wolverhampton City Council","http://opendatacommunities.org/id/metropolitan-district-council/wolverhampton","ARGOS LTD","149.99","LAC Transitions Team","5310","Client Allowances","26/10/2018"
"Wolverhampton City Council","http://opendatacommunities.org/id/metropolitan-district-council/wolverhampton","PAYPAL  GUANGZHOUSH","22.42","LAC Transitions Team","5533","Client Allowances","26/10/2018"
"Wolverhampton City Council","http://opendatacommunities.org/id/metropolitan-district-council/wolverhampton","PREMIER INN","181.00","Adoption and Residence Team & Allowances","3811","Accommodation Costs","26/10/2018"
"Wolverhampton City Council","http://opendatacommunities.org/id/metropolitan-district-council/wolverhampton","ROYAL MAIL GROUP","1.50","Adoption and Residence Team & Allowances","9402","Comms - Postage","26/10/2018"
"Wolverhampton City Council","http://opendatacommunities.org/id/metropolitan-district-council/wolverhampton","Virgin Trains","-24.00","Corporate Procurement Unit","4112","Public Transport","26/10/2018"
"Wolverhampton City Council","http://opendatacommunities.org/id/metropolitan-district-council/wolverhampton","Virgin Trains","10.00","Corporate Procurement Unit","4112","Public Transport","26/10/2018"
"Wolverhampton City Council","http://opendatacommunities.org/id/metropolitan-district-council/wolverhampton","Virgin Trains","34.00","Corporate Procurement Unit","4112","Public Transport","26/10/2018"
"Wolverhampton City Council","http://opendatacommunities.org/id/metropolitan-district-council/wolverhampton","BARCLAYS","250.00","CIN/CP Social Work Unit - Area 6","6011","Financial Assistance In Exceptional Circ","26/10/2018"
"Wolverhampton City Council","http://opendatacommunities.org/id/metropolitan-district-council/wolverhampton","Twitter Online Ads","2.00","System Leadership","7311","Marketing \ Non-staff advertising","26/10/2018"
"Wolverhampton City Council","http://opendatacommunities.org/id/metropolitan-district-council/wolverhampton","AMZN MKTP UK MT6CB4J74","8.32","Ernest Bold Court","5942","Stationery","26/10/2018"
"Wolverhampton City Council","http://opendatacommunities.org/id/metropolitan-district-council/wolverhampton","AMZN MKTP UK MT2AT1GG4","3.94","Ernest Bold Court","5942","Stationery","26/10/2018"
"Wolverhampton City Council","http://opendatacommunities.org/id/metropolitan-district-council/wolverhampton","Trainline","128.52","Admin & Support","4112","Public Transport","26/10/2018"
"Wolverhampton City Council","http://opendatacommunities.org/id/metropolitan-district-council/wolverhampton","Trainline","128.52","Admin & Support","4112","Public Transport","26/10/2018"
"Wolverhampton City Council","http://opendatacommunities.org/id/metropolitan-district-council/wolverhampton","Virgin Trains","57.50","LAC Education Team (LACE)","4112","Public Transport","26/10/2018"
"Wolverhampton City Council","http://opendatacommunities.org/id/metropolitan-district-council/wolverhampton","POST OFFICE COUNTER","942.50","Adoption and Residence Team & Allowances","9402","Comms - Postage","26/10/2018"
"Wolverhampton City Council","http://opendatacommunities.org/id/metropolitan-district-council/wolverhampton","PAYPAL  LAPTOP-LCD","53.34","Strategic ICTS (ICT Serv Budget)","5732","Equipment - Purchase","26/10/2018"
"Wolverhampton City Council","http://opendatacommunities.org/id/metropolitan-district-council/wolverhampton","Virgin Trains","40.00","Corporate Procurement Unit","4112","Public Transport","26/10/2018"
"Wolverhampton City Council","http://opendatacommunities.org/id/metropolitan-district-council/wolverhampton","AMZN MKTP UK MT94N91K4","3.66","Central Baths","5942","Books","26/10/2018"
"Wolverhampton City Council","http://opendatacommunities.org/id/metropolitan-district-council/wolverhampton","Virgin Trains","68.00","LAC Team","4112","Public Transport","26/10/2018"
"Wolverhampton City Council","http://opendatacommunities.org/id/metropolitan-district-council/wolverhampton","AMZN MKTP UK MT0RR21N4","60.94","Headstart - Employability","5942","Equipment - Purchase","26/10/2018"
"Wolverhampton City Council","http://opendatacommunities.org/id/metropolitan-district-council/wolverhampton","AMZN MKTP UK MT0KF8154","66.57","Headstart - Employability","5942","Equipment - Purchase","26/10/2018"
"Wolverhampton City Council","http://opendatacommunities.org/id/metropolitan-district-council/wolverhampton","B & M RETAIL","6.98","Technician","5310","Equipment - Purchase","25/10/2018"
"Wolverhampton City Council","http://opendatacommunities.org/id/metropolitan-district-council/wolverhampton","PREMIER INN44533700","7.08","Research & Development","5812","Educ Trips, Holidays, Outings, Activity","25/10/2018"
"Wolverhampton City Council","http://opendatacommunities.org/id/metropolitan-district-council/wolverhampton","AMZN Mktp UK MT71W61O4","2.99","EIP Locality 8","5942","Stationery","25/10/2018"
"Wolverhampton City Council","http://opendatacommunities.org/id/metropolitan-district-council/wolverhampton","EXPEDIA 7387669306448","248.40","Adoption and Residence Team & Allowances","4722","Accommodation Costs","25/10/2018"
"Wolverhampton City Council","http://opendatacommunities.org/id/metropolitan-district-council/wolverhampton","WEBSTAFF/ATP PAYMENTS","22.50","CIN/CP Social Work Unit - Area 6","9399","Section 17","25/10/2018"
"Wolverhampton City Council","http://opendatacommunities.org/id/metropolitan-district-council/wolverhampton","WWW.LIFESAVERSDIRECT","35.83","Bert Williams Leisure Centre","5965","Training Expenses","25/10/2018"
"Wolverhampton City Council","http://opendatacommunities.org/id/metropolitan-district-council/wolverhampton","SAINSBURYS PFS (1340)","1.67","Mayoral Expenses","5541","Vehicle Maintenance - Repairs","25/10/2018"
"Wolverhampton City Council","http://opendatacommunities.org/id/metropolitan-district-council/wolverhampton","WWW.ARGOS.CO.UK","44.95","LAC Transitions Team","5310","Client Allowances","25/10/2018"
"Wolverhampton City Council","http://opendatacommunities.org/id/metropolitan-district-council/wolverhampton","HM PASSPORT OFFICE","58.50","Adoption and Residence Team & Allowances","9399","Services - Fees and Charges","25/10/2018"
"Wolverhampton City Council","http://opendatacommunities.org/id/metropolitan-district-council/wolverhampton","B & Q 1243","4.50","Public Conveniences","5211","Materials","25/10/2018"
"Wolverhampton City Council","http://opendatacommunities.org/id/metropolitan-district-council/wolverhampton","AMZN Mktp UK MT86T4PU4","14.97","Strategic ICTS (ICT Serv Budget)","5942","Computing - Purchase of Hardware","25/10/2018"
"Wolverhampton City Council","http://opendatacommunities.org/id/metropolitan-district-council/wolverhampton","ASDA GROCERIES ONLINE","-0.61","Upper Pendeford Farm Childrens Home","5411","Provisions (Not for resale)","25/10/2018"
"Wolverhampton City Council","http://opendatacommunities.org/id/metropolitan-district-council/wolverhampton","ASDA GROCERIES ONLINE","204.49","Upper Pendeford Farm Childrens Home","5411","Provisions (Not for resale)","25/10/2018"
"Wolverhampton City Council","http://opendatacommunities.org/id/metropolitan-district-council/wolverhampton","WOLVERHAMPTON T/O","94.60","Service Director Disab & Mental Health","4112","Public Transport","25/10/2018"
"Wolverhampton City Council","http://opendatacommunities.org/id/metropolitan-district-council/wolverhampton","PARKIN FABRICS LIM","81.55","Creative Studies Delivery Area","5949","Equipment - Purchase","25/10/2018"
"Wolverhampton City Council","http://opendatacommunities.org/id/metropolitan-district-council/wolverhampton","AMZN Mktp UK MT3MZ0PQ4","6.97","Creative Studies Delivery Area","5942","Equipment - Purchase","25/10/2018"
"Wolverhampton City Council","http://opendatacommunities.org/id/metropolitan-district-council/wolverhampton","AMZN Mktp UK MT11301L4","14.48","ICT Services","5942","Computing - Purchase of Hardware","25/10/2018"
"Wolverhampton City Council","http://opendatacommunities.org/id/metropolitan-district-council/wolverhampton","WWW.THEWORKS.CO.UK","75.00","Headstart - Employability","5310","Stationery","25/10/2018"
"Wolverhampton City Council","http://opendatacommunities.org/id/metropolitan-district-council/wolverhampton","WILDSIDE ACTIVITY CENT","17.00","EIP Locality 1","7999","Grant Payments","25/10/2018"
"Wolverhampton City Council","http://opendatacommunities.org/id/metropolitan-district-council/wolverhampton","NEWHAMPTON ARTS CENTRE","8.00","EIP Locality 1","5971","Grant Payments","25/10/2018"
"Wolverhampton City Council","http://opendatacommunities.org/id/metropolitan-district-council/wolverhampton","CENTRAL BATHS","8.00","EIP Locality 1","8299","Grant Payments","25/10/2018"
"Wolverhampton City Council","http://opendatacommunities.org/id/metropolitan-district-council/wolverhampton","WOLVERHAMPTON ART GALL","3.58","Education And Access","5971","Materials","25/10/2018"
"Wolverhampton City Council","http://opendatacommunities.org/id/metropolitan-district-council/wolverhampton","LIDL UK BILSTON","2.45","Ernest Bold Court","5411","Provisions (Not for resale)","25/10/2018"
"Wolverhampton City Council","http://opendatacommunities.org/id/metropolitan-district-council/wolverhampton","ASDA GROCERIES ONLINE","5.00","Ernest Bold Court","5411","Provisions (Not for resale)","25/10/2018"
"Wolverhampton City Council","http://opendatacommunities.org/id/metropolitan-district-council/wolverhampton","SAINSBURYS 2040","10.00","Ernest Bold Court","5411","Equipment - Purchase","25/10/2018"
"Wolverhampton City Council","http://opendatacommunities.org/id/metropolitan-district-council/wolverhampton","ASDA SUPERSTORE","42.00","Upper Pendeford Farm Childrens Home","5411","Provisions (Not for resale)","25/10/2018"
"Wolverhampton City Council","http://opendatacommunities.org/id/metropolitan-district-council/wolverhampton","HOME BARGAINS WOLVERHA","29.06","Upper Pendeford Farm Childrens Home","5251","Equipment - Purchase","25/10/2018"
"Wolverhampton City Council","http://opendatacommunities.org/id/metropolitan-district-council/wolverhampton","LIDDELL ELECTRICAL DIS","13.00","Transportation General","5065","Materials","25/10/2018"
"Wolverhampton City Council","http://opendatacommunities.org/id/metropolitan-district-council/wolverhampton","LIDDELL ELECTRICAL DIS","41.20","Transportation General","5065","Materials","25/10/2018"
"Wolverhampton City Council","http://opendatacommunities.org/id/metropolitan-district-council/wolverhampton","B&M RETAIL LTD","13.33","LAC Transitions Team","5310","Client Allowances","24/10/2018"
"Wolverhampton City Council","http://opendatacommunities.org/id/metropolitan-district-council/wolverhampton","WM MORRISON FOOD.COM","117.18","Discretionary Fund","5411","R4007","24/10/2018"
"Wolverhampton City Council","http://opendatacommunities.org/id/metropolitan-district-council/wolverhampton","POST OFFICE COUNTER","11.00","Adoption and Residence Team & Allowances","9402","Comms - Postage","24/10/2018"
"Wolverhampton City Council","http://opendatacommunities.org/id/metropolitan-district-council/wolverhampton","DECATHLON UK","99.75","Towers Outdoor Education Centre","5941","Equipment - Purchase","24/10/2018"
"Wolverhampton City Council","http://opendatacommunities.org/id/metropolitan-district-council/wolverhampton","BARCLAYS","250.00","CIN/CP Social Work Unit - Area 6","6011","Financial Assistance In Exceptional Circ","24/10/2018"
"Wolverhampton City Council","http://opendatacommunities.org/id/metropolitan-district-council/wolverhampton","AMZN Mktp UK MT9R670L4","19.99","Communications & Marketing - General","5942","Books","24/10/2018"
"Wolverhampton City Council","http://opendatacommunities.org/id/metropolitan-district-council/wolverhampton","AMZN Mktp UK MT3G210S4","13.06","Admin & Support","5942","Books","24/10/2018"
"Wolverhampton City Council","http://opendatacommunities.org/id/metropolitan-district-council/wolverhampton","GRO HM PASSPORT OFFICE","9.25","LAC Team","9399","Financial Assistance In Exceptional Circ","24/10/2018"
"Wolverhampton City Council","http://opendatacommunities.org/id/metropolitan-district-council/wolverhampton","SQ  PLATINUM CHAUFFEUR","240.00","LAC Team","4121","Client Transport","24/10/2018"
"Wolverhampton City Council","http://opendatacommunities.org/id/metropolitan-district-council/wolverhampton","ARGOS RETAIL GROUP","69.99","EIP Locality 5","5310","Grant Payments","24/10/2018"
"Wolverhampton City Council","http://opendatacommunities.org/id/metropolitan-district-council/wolverhampton","ASDA SUPERSTORE","21.00","Creative Studies Delivery Area","5411","Equipment - Purchase","24/10/2018"
"Wolverhampton City Council","http://opendatacommunities.org/id/metropolitan-district-council/wolverhampton","THE POTTERS CONNECTION","33.54","Creative Studies Delivery Area","5947","Equipment - Purchase","24/10/2018"
"Wolverhampton City Council","http://opendatacommunities.org/id/metropolitan-district-council/wolverhampton","SCREWFIX DIRECT","72.52","Service Wide","5211","Equipment - R & M","24/10/2018"
"Wolverhampton City Council","http://opendatacommunities.org/id/metropolitan-district-council/wolverhampton","AMZN Mktp UK MT7348324","7.49","Creative Studies Delivery Area","5942","Equipment - Purchase","24/10/2018"
"Wolverhampton City Council","http://opendatacommunities.org/id/metropolitan-district-council/wolverhampton","AMZN MKTP UK MT3MI1034","14.99","Archives","5942","Equipment - Purchase","24/10/2018"
"Wolverhampton City Council","http://opendatacommunities.org/id/metropolitan-district-council/wolverhampton","WCC MOTO PAYMENTS","37.50","CIN/CP Social Work Unit - Area 7","9399","Section 17","24/10/2018"
"Wolverhampton City Council","http://opendatacommunities.org/id/metropolitan-district-council/wolverhampton","ARGOS LTD","64.99","Duke Street Bungalows","5310","R4010","24/10/2018"
"Wolverhampton City Council","http://opendatacommunities.org/id/metropolitan-district-council/wolverhampton","Cross Country Trains","7.80","Head of Strategic Commissioning � People","4112","Public Transport","24/10/2018"
"Wolverhampton City Council","http://opendatacommunities.org/id/metropolitan-district-council/wolverhampton","Amazon.co.uk MT3OR50S4","7.49","Blakenhall Commty & Healthy Living Ctr","5969","Equipment - Purchase","24/10/2018"
"Wolverhampton City Council","http://opendatacommunities.org/id/metropolitan-district-council/wolverhampton","CardtronicsUK","20.00","EIP Locality 3","6011","Grant Payments","24/10/2018"
"Wolverhampton City Council","http://opendatacommunities.org/id/metropolitan-district-council/wolverhampton","ARGOS RETAIL GROUP","16.67","EIP Locality 3","5310","Grant Payments","24/10/2018"
"Wolverhampton City Council","http://opendatacommunities.org/id/metropolitan-district-council/wolverhampton","B & Q 1243","2.47","Bradley Resource Centre","5211","Equipment - R & M","24/10/2018"
"Wolverhampton City Council","http://opendatacommunities.org/id/metropolitan-district-council/wolverhampton","B & Q 1243","9.15","Bradley Resource Centre","5211","Equipment - R & M","24/10/2018"
"Wolverhampton City Council","http://opendatacommunities.org/id/metropolitan-district-council/wolverhampton","NATWEST BANK","200.00","Democratic Support","6011","Public Transport","24/10/2018"
"Wolverhampton City Council","http://opendatacommunities.org/id/metropolitan-district-council/wolverhampton","WORDERY","11.89","Inclusion Support","5942","Books","24/10/2018"
"Wolverhampton City Council","http://opendatacommunities.org/id/metropolitan-district-council/wolverhampton","BOOKDEPOSITORY.COM","29.24","Inclusion Support","5942","Books","24/10/2018"
"Wolverhampton City Council","http://opendatacommunities.org/id/metropolitan-district-council/wolverhampton","THE POST OFFICE","1.77","CIN/CP Social Work Unit - Area 4","9402","Section 17","24/10/2018"
"Wolverhampton City Council","http://opendatacommunities.org/id/metropolitan-district-council/wolverhampton","J VAN VLIET BIRMINGHAM","141.68","Creative Studies Delivery Area","5399","Materials for resale","24/10/2018"
"Wolverhampton City Council","http://opendatacommunities.org/id/metropolitan-district-council/wolverhampton","FIRST UTILITY","2.61","LAC Transitions Team","4900","Client Allowances","23/10/2018"
"Wolverhampton City Council","http://opendatacommunities.org/id/metropolitan-district-council/wolverhampton","SAINSBURYS 2040","40.00","Duke Street Bungalows","5411","R4010","23/10/2018"
"Wolverhampton City Council","http://opendatacommunities.org/id/metropolitan-district-council/wolverhampton","ASDA GROCERIES ONLINE","72.82","Ernest Bold Court","5411","Provisions (Not for resale)","23/10/2018"
"Wolverhampton City Council","http://opendatacommunities.org/id/metropolitan-district-council/wolverhampton","Virgin Trains","36.30","Members Expenses","4112","Public Transport","23/10/2018"
"Wolverhampton City Council","http://opendatacommunities.org/id/metropolitan-district-council/wolverhampton","WWW.EBIS-HSE.COM","790.00","Central Training","8220","Training Expenses","23/10/2018"
"Wolverhampton City Council","http://opendatacommunities.org/id/metropolitan-district-council/wolverhampton","Virgin Trains","92.30","Planning","4112","Public Transport","23/10/2018"
"Wolverhampton City Council","http://opendatacommunities.org/id/metropolitan-district-council/wolverhampton","ARGOS LTD","20.83","LAC Transitions Team","5310","Client Allowances","23/10/2018"
"Wolverhampton City Council","http://opendatacommunities.org/id/metropolitan-district-council/wolverhampton","ARGOS LTD","44.99","LAC Transitions Team","5310","Client Allowances","23/10/2018"
"Wolverhampton City Council","http://opendatacommunities.org/id/metropolitan-district-council/wolverhampton","SAINSBURYS SACAT 2040","1.25","LAC Transitions Team","5411","Client Allowances","23/10/2018"
"Wolverhampton City Council","http://opendatacommunities.org/id/metropolitan-district-council/wolverhampton","Virgin Trains","185.08","Visitor Economy - Development","4112","Public Transport","23/10/2018"
"Wolverhampton City Council","http://opendatacommunities.org/id/metropolitan-district-council/wolverhampton","WWW.CARESHOP.CO.UK","76.95","Ernest Bold Court","5999","Materials","23/10/2018"
"Wolverhampton City Council","http://opendatacommunities.org/id/metropolitan-district-council/wolverhampton","Trainline","8.69","SEN Special Education Admin","4112","Public Transport","23/10/2018"
"Wolverhampton City Council","http://opendatacommunities.org/id/metropolitan-district-council/wolverhampton","LUL TICKET MACHINE","4.90","Research & Development","4112","Public Transport","23/10/2018"
"Wolverhampton City Council","http://opendatacommunities.org/id/metropolitan-district-council/wolverhampton","PAYPAL  BARNARDOS","45.00","EIP Locality 2","8999","Training Expenses","23/10/2018"
"Wolverhampton City Council","http://opendatacommunities.org/id/metropolitan-district-council/wolverhampton","HANOVIA LIMITED","288.00","Towers Outdoor Education Centre","4900","Fixtures and Fittings - Purchases","23/10/2018"
"Wolverhampton City Council","http://opendatacommunities.org/id/metropolitan-district-council/wolverhampton","BETTWS MOTORS LIMITED","10.00","Towers Outdoor Education Centre","7538","Fixtures and Fittings - Purchases","23/10/2018"
"Wolverhampton City Council","http://opendatacommunities.org/id/metropolitan-district-council/wolverhampton","WM MORRISONS STORE","3.75","Fostering Team & Allowances","5411","Provisions (Not for resale)","23/10/2018"
"Wolverhampton City Council","http://opendatacommunities.org/id/metropolitan-district-council/wolverhampton","FACEBK PTQZNGAW92","10.00","Headstart Phase 3","7311","Marketing \ Non-staff advertising","23/10/2018"
"Wolverhampton City Council","http://opendatacommunities.org/id/metropolitan-district-council/wolverhampton","HIGHSTREET VOCUHERS","20.00","Work Box","8641","Client Allowances","23/10/2018"
"Wolverhampton City Council","http://opendatacommunities.org/id/metropolitan-district-council/wolverhampton","HIGHSTREET VOCUHERS","30.00","Work Box","8641","Client Allowances","23/10/2018"
"Wolverhampton City Council","http://opendatacommunities.org/id/metropolitan-district-council/wolverhampton","CT WOLVERHAMPTON","140.00","LAC Transitions Team","8398","Client Allowances","23/10/2018"
"Wolverhampton City Council","http://opendatacommunities.org/id/metropolitan-district-council/wolverhampton","Trainline","170.48","Service Director City Environment","4112","Public Transport","23/10/2018"
"Wolverhampton City Council","http://opendatacommunities.org/id/metropolitan-district-council/wolverhampton","Virgin Trains","161.55","LAC Team","4112","Client Transport","23/10/2018"
"Wolverhampton City Council","http://opendatacommunities.org/id/metropolitan-district-council/wolverhampton","Virgin Trains","107.70","LAC Team","4112","Client Transport","23/10/2018"
"Wolverhampton City Council","http://opendatacommunities.org/id/metropolitan-district-council/wolverhampton","WWW.VALENTINECLAYS.CO.","156.73","Creative Studies Delivery Area","5945","Equipment - Purchase","23/10/2018"
"Wolverhampton City Council","http://opendatacommunities.org/id/metropolitan-district-council/wolverhampton","WWW.WOLVERHAMPTON.GOV.","72.23","LAC Transitions Team","9399","Client Allowances","23/10/2018"
"Wolverhampton City Council","http://opendatacommunities.org/id/metropolitan-district-council/wolverhampton","Amazon.co.uk MT4X10EY4","72.57","LAC Transitions Team","5969","Client Allowances","23/10/2018"
"Wolverhampton City Council","http://opendatacommunities.org/id/metropolitan-district-council/wolverhampton","DULUX DECORATOR CENTRE","40.86","Technician","5198","Materials","22/10/2018"
"Wolverhampton City Council","http://opendatacommunities.org/id/metropolitan-district-council/wolverhampton","BULLSEYE AWARDS AND GA","32.55","Private Hire Drivers","5094","Equipment - Purchase","22/10/2018"
"Wolverhampton City Council","http://opendatacommunities.org/id/metropolitan-district-council/wolverhampton","EB  EVENT SAFETY AMP S","215.04","Visitor Economy - Development","7399","Equipment - Purchase","22/10/2018"
"Wolverhampton City Council","http://opendatacommunities.org/id/metropolitan-district-council/wolverhampton","EB  EVENT SAFETY AMP S","215.04","Visitor Economy - Development","7399","Equipment - Purchase","22/10/2018"
"Wolverhampton City Council","http://opendatacommunities.org/id/metropolitan-district-council/wolverhampton","ROYAL MAIL ONLINE SHOP","58.00","Towers Outdoor Education Centre","9402","Comms - Postage","22/10/2018"
"Wolverhampton City Council","http://opendatacommunities.org/id/metropolitan-district-council/wolverhampton","Amazon.co.uk MT2IN3J94","20.82","CIN/CP Social Work Unit - Area 5","5969","Section 17","22/10/2018"
"Wolverhampton City Council","http://opendatacommunities.org/id/metropolitan-district-council/wolverhampton","IKEA LIMITED","258.33","LAC Transitions Team","5712","Client Allowances","22/10/2018"
"Wolverhampton City Council","http://opendatacommunities.org/id/metropolitan-district-council/wolverhampton","WWW.CORAM.ORG.UK","18.95","Adoption and Residence Team & Allowances","8398","Books","22/10/2018"
"Wolverhampton City Council","http://opendatacommunities.org/id/metropolitan-district-council/wolverhampton","POST OFFICE COUNTER","7.30","Adoption and Residence Team & Allowances","9402","Comms - Postage","22/10/2018"
"Wolverhampton City Council","http://opendatacommunities.org/id/metropolitan-district-council/wolverhampton","WWW.STAPLES.CO.UK","38.92","Towers Outdoor Education Centre","5943","Equipment - Purchase","22/10/2018"
"Wolverhampton City Council","http://opendatacommunities.org/id/metropolitan-district-council/wolverhampton","AMZN MKTP UK MT6RJ3TP4","85.89","Towers Outdoor Education Centre","5942","Fixtures and Fittings - Purchases","22/10/2018"
"Wolverhampton City Council","http://opendatacommunities.org/id/metropolitan-district-council/wolverhampton","AMZN MKTP UK MT3817J94","6.79","Towers Outdoor Education Centre","5942","Fixtures and Fittings - Purchases","22/10/2018"
"Wolverhampton City Council","http://opendatacommunities.org/id/metropolitan-district-council/wolverhampton","CROMARTIE HOBBYCRAFT L","332.90","Communications & Marketing - General","5970","Materials","22/10/2018"
"Wolverhampton City Council","http://opendatacommunities.org/id/metropolitan-district-council/wolverhampton","AMZN Mktp UK MT95T9TQ4","5.58","Communications & Marketing - General","5942","Books","22/10/2018"
"Wolverhampton City Council","http://opendatacommunities.org/id/metropolitan-district-council/wolverhampton","AMZN Mktp UK MT2O87JQ4","6.89","Communications & Marketing - General","5942","Books","22/10/2018"
"Wolverhampton City Council","http://opendatacommunities.org/id/metropolitan-district-council/wolverhampton","LOOP11.COM","157.44","City Direct","7372","Computing - Purchase of Software","22/10/2018"
"Wolverhampton City Council","http://opendatacommunities.org/id/metropolitan-district-council/wolverhampton","LUL TICKET MACHINE","4.90","Managing Director","4112","Public Transport","22/10/2018"
"Wolverhampton City Council","http://opendatacommunities.org/id/metropolitan-district-council/wolverhampton","M&S SIMPLY FOOD - SSP","5.65","Managing Director","5499","Catering","22/10/2018"
"Wolverhampton City Council","http://opendatacommunities.org/id/metropolitan-district-council/wolverhampton","WWW.ARGOS.CO.UK","35.93","LAC Team","5310","Financial Assistance In Exceptional Circ","22/10/2018"
"Wolverhampton City Council","http://opendatacommunities.org/id/metropolitan-district-council/wolverhampton","ASDA GROCERIES ONLINE","45.74","Creative Studies Delivery Area","5411","Provisions (Not for resale)","22/10/2018"
"Wolverhampton City Council","http://opendatacommunities.org/id/metropolitan-district-council/wolverhampton","POUNDLAND LTD 1463","8.10","Foundation Studies","5310","Equipment - Purchase","22/10/2018"
"Wolverhampton City Council","http://opendatacommunities.org/id/metropolitan-district-council/wolverhampton","HUGHES","416.67","LAC Transitions Team","5732","Client Allowances","22/10/2018"
"Wolverhampton City Council","http://opendatacommunities.org/id/metropolitan-district-council/wolverhampton","HUGHES","416.67","LAC Transitions Team","5732","Client Allowances","22/10/2018"
"Wolverhampton City Council","http://opendatacommunities.org/id/metropolitan-district-council/wolverhampton","WWW.ARGOS.CO.UK","153.92","EIP Locality 1","5310","Grant Payments","22/10/2018"
"Wolverhampton City Council","http://opendatacommunities.org/id/metropolitan-district-council/wolverhampton","MARTIN MCCOLL","10.00","EIP Locality 1","5499","Grant Payments","22/10/2018"
"Wolverhampton City Council","http://opendatacommunities.org/id/metropolitan-district-council/wolverhampton","Amazon.co.uk MT80Q9T84","116.64","Learning Disabilities Management","5969","Equipment - Purchase","22/10/2018"
"Wolverhampton City Council","http://opendatacommunities.org/id/metropolitan-district-council/wolverhampton","AMZN Mktp UK MT3TL7T74","11.21","Ernest Bold Court","5942","Stationery","22/10/2018"
"Wolverhampton City Council","http://opendatacommunities.org/id/metropolitan-district-council/wolverhampton","ARGOS WOLVERHAMPTO","53.98","Duke Street Bungalows","5310","R4010","22/10/2018"
"Wolverhampton City Council","http://opendatacommunities.org/id/metropolitan-district-council/wolverhampton","FONESHACK (UK) LIMITED","5.82","Employment Programmes","4812","Comms - Mobile Telephones","22/10/2018"
"Wolverhampton City Council","http://opendatacommunities.org/id/metropolitan-district-council/wolverhampton","ASDA GROCERIES ONLINE","62.39","Ernest Bold Court","5411","Provisions (Not for resale)","22/10/2018"
"Wolverhampton City Council","http://opendatacommunities.org/id/metropolitan-district-council/wolverhampton","AMZN Mktp UK MT7PZ1AW4","25.02","Inclusion Support","5942","Materials","22/10/2018"
"Wolverhampton City Council","http://opendatacommunities.org/id/metropolitan-district-council/wolverhampton","WWW.VIRGINTRAINS.CO.UK","312.00","Trading Standards","4112","Services - Fees and Charges","22/10/2018"
"Wolverhampton City Council","http://opendatacommunities.org/id/metropolitan-district-council/wolverhampton","WWW.VIRGINTRAINS.CO.UK","520.00","Trading Standards","4112","Services - Fees and Charges","22/10/2018"
"Wolverhampton City Council","http://opendatacommunities.org/id/metropolitan-district-council/wolverhampton","Virgin Trains","154.00","Trading Standards","4112","Services - Fees and Charges","22/10/2018"
"Wolverhampton City Council","http://opendatacommunities.org/id/metropolitan-district-council/wolverhampton","TFL VISITOR SHOP","85.90","Trading Standards","5965","Services - Fees and Charges","22/10/2018"
"Wolverhampton City Council","http://opendatacommunities.org/id/metropolitan-district-council/wolverhampton","PREMIER INN","72.00","CIN/CP Social Work Unit - Area 5","3811","Section 17","22/10/2018"
"Wolverhampton City Council","http://opendatacommunities.org/id/metropolitan-district-council/wolverhampton","UNTOUCHABLES","23.97","Education Catering - General Overheads","5231","Materials","22/10/2018"
"Wolverhampton City Council","http://opendatacommunities.org/id/metropolitan-district-council/wolverhampton","THE SOLICITORS GROUP","72.00","Central Training","8244","Training Expenses","22/10/2018"
"Wolverhampton City Council","http://opendatacommunities.org/id/metropolitan-district-council/wolverhampton","THE COAL AUTHORITY","95.16","Disposal Costs","9399","Services - Professional Fees","22/10/2018"
"Wolverhampton City Council","http://opendatacommunities.org/id/metropolitan-district-council/wolverhampton","CITY OF WOLVERHAMPTON","7.00","Head of Service - CINCP","9399","Services - Professional Fees","22/10/2018"
"Wolverhampton City Council","http://opendatacommunities.org/id/metropolitan-district-council/wolverhampton","CITY OF WOLVERHAMPTON","30.00","Head of Service - CINCP","9399","Services - Professional Fees","22/10/2018"
"Wolverhampton City Council","http://opendatacommunities.org/id/metropolitan-district-council/wolverhampton","E H SMITH - SHIRLEY (3","70.20","Technical Material","5211","Materials","19/10/2018"
"Wolverhampton City Council","http://opendatacommunities.org/id/metropolitan-district-council/wolverhampton","WOLVERHAMPTON CC","2.50","Headstart Phase 3","7523","Parking Fees","19/10/2018"
"Wolverhampton City Council","http://opendatacommunities.org/id/metropolitan-district-council/wolverhampton","B&M RETAIL LTD","11.22","LAC Transitions Team","5310","Client Allowances","19/10/2018"
"Wolverhampton City Council","http://opendatacommunities.org/id/metropolitan-district-council/wolverhampton","000002200500000","200.00","Childrens with Disabilities Team","6011","Financial Assistance In Exceptional Circ","19/10/2018"
"Wolverhampton City Council","http://opendatacommunities.org/id/metropolitan-district-council/wolverhampton","Virgin Trains","-117.00","Fostering Team & Allowances","4112","Public Transport","19/10/2018"
"Wolverhampton City Council","http://opendatacommunities.org/id/metropolitan-district-council/wolverhampton","ARGOS WOLVERHAMPTO","33.32","Fostering Team & Allowances","5310","Equipment - Purchase","19/10/2018"
"Wolverhampton City Council","http://opendatacommunities.org/id/metropolitan-district-council/wolverhampton","GODADDY COM EUROPE","72.38","Communications & Marketing - General","4816","Computing - Purchase of Software","19/10/2018"
"Wolverhampton City Council","http://opendatacommunities.org/id/metropolitan-district-council/wolverhampton","AMZN Mktp UK MT7A38NO4","10.24","Communications & Marketing - General","5942","Books","19/10/2018"
"Wolverhampton City Council","http://opendatacommunities.org/id/metropolitan-district-council/wolverhampton","AMZN Mktp UK MT3G53NU4","23.38","Communications & Marketing - General","5942","Books","19/10/2018"
"Wolverhampton City Council","http://opendatacommunities.org/id/metropolitan-district-council/wolverhampton","AMZN Mktp UK MT2YP5N84","5.58","Communications & Marketing - General","5942","Books","19/10/2018"
"Wolverhampton City Council","http://opendatacommunities.org/id/metropolitan-district-council/wolverhampton","AMZN Mktp UK MT1CW5NY4","40.44","Communications & Marketing - General","5942","Books","19/10/2018"
"Wolverhampton City Council","http://opendatacommunities.org/id/metropolitan-district-council/wolverhampton","AMZN Mktp UK","3.99","Communications & Marketing - General","5942","Books","19/10/2018"
"Wolverhampton City Council","http://opendatacommunities.org/id/metropolitan-district-council/wolverhampton","AMZN Mktp UK","6.23","Communications & Marketing - General","5942","Books","19/10/2018"
"Wolverhampton City Council","http://opendatacommunities.org/id/metropolitan-district-council/wolverhampton","AMZN Mktp UK","5.99","Communications & Marketing - General","5942","Books","19/10/2018"
"Wolverhampton City Council","http://opendatacommunities.org/id/metropolitan-district-council/wolverhampton","AMZN Mktp UK","2.50","Communications & Marketing - General","5942","Books","19/10/2018"
"Wolverhampton City Council","http://opendatacommunities.org/id/metropolitan-district-council/wolverhampton","AMZN Mktp UK","2.79","Communications & Marketing - General","5942","Books","19/10/2018"
"Wolverhampton City Council","http://opendatacommunities.org/id/metropolitan-district-council/wolverhampton","AMZN Mktp UK MT5C65N34","53.61","Communications & Marketing - General","5942","Books","19/10/2018"
"Wolverhampton City Council","http://opendatacommunities.org/id/metropolitan-district-council/wolverhampton","MARKS&SPENCER PLC SACA","51.60","Admin & Support","5411","Provisions (Not for resale)","19/10/2018"
"Wolverhampton City Council","http://opendatacommunities.org/id/metropolitan-district-council/wolverhampton","WP-JOB-MANAGER-BROADBE","250.00","City Direct","7372","Computing - Purchase of Software","19/10/2018"
"Wolverhampton City Council","http://opendatacommunities.org/id/metropolitan-district-council/wolverhampton","WP-CENTRAL TAXIS L","-13.80","LAC Education Team (LACE)","4121","Client Transport","19/10/2018"
"Wolverhampton City Council","http://opendatacommunities.org/id/metropolitan-district-council/wolverhampton","WOLVERHAMPTON CC","2.50","Cemeteries","7523","Car Allowances","19/10/2018"
"Wolverhampton City Council","http://opendatacommunities.org/id/metropolitan-district-council/wolverhampton","WWW.DERBY.GOV.UK","22.00","Adoption and Residence Team & Allowances","9399","Services - Fees and Charges","19/10/2018"
"Wolverhampton City Council","http://opendatacommunities.org/id/metropolitan-district-council/wolverhampton","HOTELS.COM113680725152","65.01","Adoption and Residence Team & Allowances","4722","Accommodation Costs","19/10/2018"
"Wolverhampton City Council","http://opendatacommunities.org/id/metropolitan-district-council/wolverhampton","SCREWFIX WOLVERHAM","4.98","Public Conveniences","5211","R&M - Departmental planned (external)","19/10/2018"
"Wolverhampton City Council","http://opendatacommunities.org/id/metropolitan-district-council/wolverhampton","Amazon.co.uk MT3WO5ZK4","4.99","Strategic ICTS (ICT Serv Budget)","5969","Equipment - Purchase","19/10/2018"
"Wolverhampton City Council","http://opendatacommunities.org/id/metropolitan-district-council/wolverhampton","AMZN Mktp UK MT3KW2ZQ4","11.99","Strategic ICTS (ICT Serv Budget)","5942","Books","19/10/2018"
"Wolverhampton City Council","http://opendatacommunities.org/id/metropolitan-district-council/wolverhampton","SCREWFIX DIRECT","29.16","Central Costs","5211","Equipment - Purchase","19/10/2018"
"Wolverhampton City Council","http://opendatacommunities.org/id/metropolitan-district-council/wolverhampton","AMZN MKTP UK AMAZON.CO","21.82","Learning Disabilities Management","5942","Equipment - R & M","19/10/2018"
"Wolverhampton City Council","http://opendatacommunities.org/id/metropolitan-district-council/wolverhampton","ARGOS RETAIL GROUP","4.99","Older People Provider Management","5310","Equipment - Purchase","19/10/2018"
"Wolverhampton City Council","http://opendatacommunities.org/id/metropolitan-district-council/wolverhampton","ARGOS RETAIL GROUP","49.92","Older People Provider Management","5310","Equipment - Purchase","19/10/2018"
"Wolverhampton City Council","http://opendatacommunities.org/id/metropolitan-district-council/wolverhampton","UnitedArtsGmbH","340.00","Specialist Support Service - North","5734","Services - Fees and Charges","19/10/2018"
"Wolverhampton City Council","http://opendatacommunities.org/id/metropolitan-district-council/wolverhampton","ICELAND","2.34","Carers Support","5411","Provisions (Not for resale)","19/10/2018"
"Wolverhampton City Council","http://opendatacommunities.org/id/metropolitan-district-council/wolverhampton","Virgin Trains","8.30","Children & Young People Support Costs","4112","Public Transport","19/10/2018"
"Wolverhampton City Council","http://opendatacommunities.org/id/metropolitan-district-council/wolverhampton","WIX.COM","93.13","Technical Support","5968","Subscriptions","19/10/2018"
"Wolverhampton City Council","http://opendatacommunities.org/id/metropolitan-district-council/wolverhampton","Amazon.co.uk MT9BU2ZL4","10.43","Global Budgets","5969","Books","19/10/2018"
"Wolverhampton City Council","http://opendatacommunities.org/id/metropolitan-district-council/wolverhampton","AMZN Mktp UK","59.98","Global Budgets","5942","Books","19/10/2018"
"Wolverhampton City Council","http://opendatacommunities.org/id/metropolitan-district-council/wolverhampton","AMZN Mktp UK","58.32","Global Budgets","5942","Books","19/10/2018"
"Wolverhampton City Council","http://opendatacommunities.org/id/metropolitan-district-council/wolverhampton","AMZN Mktp UK MT8BM3LH4","58.32","Global Budgets","5942","Books","19/10/2018"
"Wolverhampton City Council","http://opendatacommunities.org/id/metropolitan-district-council/wolverhampton","AMZN Mktp UK","7.07","EIP Locality 3","5942","Grant Payments","19/10/2018"
"Wolverhampton City Council","http://opendatacommunities.org/id/metropolitan-district-council/wolverhampton","WWW.REDSPOTTEDHANK","208.20","CIN/CP Social Work Unit - Area 5","4112","Section 17","19/10/2018"
"Wolverhampton City Council","http://opendatacommunities.org/id/metropolitan-district-council/wolverhampton","POST OFFICE COUNTER","192.00","Safeguarding Admin Resource","9402","Comms - Postage","19/10/2018"
"Wolverhampton City Council","http://opendatacommunities.org/id/metropolitan-district-council/wolverhampton","PAYPAL  SOCIALVALUE","150.00","Central Training","7392","Training Expenses","19/10/2018"
"Wolverhampton City Council","http://opendatacommunities.org/id/metropolitan-district-council/wolverhampton","PAYPAL  SOCIALVALUE","150.00","Central Training","7392","Training Expenses","19/10/2018"
"Wolverhampton City Council","http://opendatacommunities.org/id/metropolitan-district-council/wolverhampton","PAYPAL  SOCIALVALUE","150.00","Central Training","7392","Training Expenses","19/10/2018"
"Wolverhampton City Council","http://opendatacommunities.org/id/metropolitan-district-council/wolverhampton","ARGOS RETAIL GROUP","24.99","Ernest Bold Court","5310","Equipment - Purchase","19/10/2018"
"Wolverhampton City Council","http://opendatacommunities.org/id/metropolitan-district-council/wolverhampton","PREMIER INN","344.17","Adoption and Residence Team & Allowances","3811","Accommodation Costs","19/10/2018"
"Wolverhampton City Council","http://opendatacommunities.org/id/metropolitan-district-council/wolverhampton","Virgin Trains","194.70","Planning","4112","Public Transport","19/10/2018"
"Wolverhampton City Council","http://opendatacommunities.org/id/metropolitan-district-council/wolverhampton","THE POST OFFICE","26.85","Planning","9402","Comms - Postage","19/10/2018"
"Wolverhampton City Council","http://opendatacommunities.org/id/metropolitan-district-council/wolverhampton","WWW.REGISTRY-TRUST.ORG","8.33","Private Sector Housing","8999","Services - Professional Fees","19/10/2018"
"Wolverhampton City Council","http://opendatacommunities.org/id/metropolitan-district-council/wolverhampton","B&M RETAIL","5.82","LAC Transitions Team","5310","Client Allowances","18/10/2018"
"Wolverhampton City Council","http://opendatacommunities.org/id/metropolitan-district-council/wolverhampton","B&M RETAIL","183.71","LAC Transitions Team","5310","Client Allowances","18/10/2018"
"Wolverhampton City Council","http://opendatacommunities.org/id/metropolitan-district-council/wolverhampton","ARGOS LTD","114.95","LAC Transitions Team","5310","Client Allowances","18/10/2018"
"Wolverhampton City Council","http://opendatacommunities.org/id/metropolitan-district-council/wolverhampton","WWW.IKEA.COM","405.92","LAC Transitions Team","5712","Client Allowances","18/10/2018"
"Wolverhampton City Council","http://opendatacommunities.org/id/metropolitan-district-council/wolverhampton","SCREWFIX DIRECT","45.82","Technician","5211","Materials","18/10/2018"
"Wolverhampton City Council","http://opendatacommunities.org/id/metropolitan-district-council/wolverhampton","WWW.KITEPACKAGING.CO.U","42.93","Technician","5085","R4007","18/10/2018"
"Wolverhampton City Council","http://opendatacommunities.org/id/metropolitan-district-council/wolverhampton","PAYPAL  UNIVERSALSU","21.96","Technician","5311","Equipment - Purchase","18/10/2018"
"Wolverhampton City Council","http://opendatacommunities.org/id/metropolitan-district-council/wolverhampton","PAVILION HOUSE","150.00","LAC Transitions Team","8999","Client Allowances","18/10/2018"
"Wolverhampton City Council","http://opendatacommunities.org/id/metropolitan-district-council/wolverhampton","CT WOLVERHAMPTON","25.00","LAC Transitions Team","8398","Client Allowances","18/10/2018"
"Wolverhampton City Council","http://opendatacommunities.org/id/metropolitan-district-council/wolverhampton","BULLSEYE AWARDS AND GA","325.50","Private Hire Drivers","5094","Equipment - Purchase","18/10/2018"
"Wolverhampton City Council","http://opendatacommunities.org/id/metropolitan-district-council/wolverhampton","BEATSABAR MUSIC PROJEC","221.62","Youth Offending Team","5733","Equipment - Purchase","18/10/2018"
"Wolverhampton City Council","http://opendatacommunities.org/id/metropolitan-district-council/wolverhampton","PREMIER INN","136.25","BP Portrait Award","3811","Services - Supplies & Services to users","18/10/2018"
"Wolverhampton City Council","http://opendatacommunities.org/id/metropolitan-district-council/wolverhampton","Trainline","76.00","Director of Education","4112","Public Transport","18/10/2018"
"Wolverhampton City Council","http://opendatacommunities.org/id/metropolitan-district-council/wolverhampton","Virgin Trains","8.30","Quality Assurance & Policies","4112","Public Transport","18/10/2018"
"Wolverhampton City Council","http://opendatacommunities.org/id/metropolitan-district-council/wolverhampton","PAYPAL  LOTUS LTD","3.42","LAC Transitions Team","5331","Client Allowances","18/10/2018"
"Wolverhampton City Council","http://opendatacommunities.org/id/metropolitan-district-council/wolverhampton","Virgin Trains","132.80","Adoption and Residence Team & Allowances","4112","Public Transport","18/10/2018"
"Wolverhampton City Council","http://opendatacommunities.org/id/metropolitan-district-council/wolverhampton","TESCO STORES 5194","-9.65","Towers Outdoor Education Centre","5411","Provisions (Not for resale)","18/10/2018"
"Wolverhampton City Council","http://opendatacommunities.org/id/metropolitan-district-council/wolverhampton","Virgin Trains","24.00","Corporate Procurement Unit","4112","Public Transport","18/10/2018"
"Wolverhampton City Council","http://opendatacommunities.org/id/metropolitan-district-council/wolverhampton","Virgin Trains","16.00","Delivery & OCE Development","4112","Public Transport","18/10/2018"
"Wolverhampton City Council","http://opendatacommunities.org/id/metropolitan-district-council/wolverhampton","Virgin Trains","92.10","Delivery & OCE Development","4112","Public Transport","18/10/2018"
"Wolverhampton City Council","http://opendatacommunities.org/id/metropolitan-district-council/wolverhampton","Virgin Trains","122.70","Audit Services","4112","Public Transport","18/10/2018"
"Wolverhampton City Council","http://opendatacommunities.org/id/metropolitan-district-council/wolverhampton","Virgin Trains","127.00","Fostering Team & Allowances","4112","Public Transport","18/10/2018"
"Wolverhampton City Council","http://opendatacommunities.org/id/metropolitan-district-council/wolverhampton","AMZN Mktp UK","7.98","Communications & Marketing - General","5942","Books","18/10/2018"
"Wolverhampton City Council","http://opendatacommunities.org/id/metropolitan-district-council/wolverhampton","POUNDLAND LTD 1463","2.50","Admin & Support","5310","Equipment - Purchase","18/10/2018"
"Wolverhampton City Council","http://opendatacommunities.org/id/metropolitan-district-council/wolverhampton","ADDSEARCH","54.69","City Direct","7372","Computing - Purchase of Software","18/10/2018"
"Wolverhampton City Council","http://opendatacommunities.org/id/metropolitan-district-council/wolverhampton","WP-CENTRAL TAXIS L","91.20","LAC Education Team (LACE)","4121","Client Transport","18/10/2018"
"Wolverhampton City Council","http://opendatacommunities.org/id/metropolitan-district-council/wolverhampton","PREMIER INN","111.67","LAC Transitions Team","3811","Client Allowances","18/10/2018"
"Wolverhampton City Council","http://opendatacommunities.org/id/metropolitan-district-council/wolverhampton","SQ  PC SAFE","263.88","Strategic ICTS (ICT Serv Budget)","5399","Equipment - Purchase","18/10/2018"
"Wolverhampton City Council","http://opendatacommunities.org/id/metropolitan-district-council/wolverhampton","AMZN Mktp UK MT1RC8LO4","15.96","Strategic ICTS (ICT Serv Budget)","5942","Computing - Purchase of Hardware","18/10/2018"
"Wolverhampton City Council","http://opendatacommunities.org/id/metropolitan-district-council/wolverhampton","AMZN Mktp UK MT0DM1LX4","15.77","Strategic ICTS (ICT Serv Budget)","5942","Computing - Purchase of Hardware","18/10/2018"
"Wolverhampton City Council","http://opendatacommunities.org/id/metropolitan-district-council/wolverhampton","AMZN Mktp UK MT0V04OT4","5.82","Strategic ICTS (ICT Serv Budget)","5942","Computing - Purchase of Hardware","18/10/2018"
"Wolverhampton City Council","http://opendatacommunities.org/id/metropolitan-district-council/wolverhampton","ALDI 78 772","186.98","Upper Pendeford Farm Childrens Home","5411","Provisions (Not for resale)","18/10/2018"
"Wolverhampton City Council","http://opendatacommunities.org/id/metropolitan-district-council/wolverhampton","WWW.ARGOS.CO.UK","179.98","Upper Pendeford Farm Childrens Home","5310","Equipment - Purchase","18/10/2018"
"Wolverhampton City Council","http://opendatacommunities.org/id/metropolitan-district-council/wolverhampton","HOME BARGAINS","8.69","Emergency Duty Team","5251","Equipment - Purchase","18/10/2018"
"Wolverhampton City Council","http://opendatacommunities.org/id/metropolitan-district-council/wolverhampton","WOLVERHAMPTON T/O","176.00","Adult Services - North","4112","Public Transport","18/10/2018"
"Wolverhampton City Council","http://opendatacommunities.org/id/metropolitan-district-council/wolverhampton","KNOWDATA LIMITED","234.00","Head of Strategic Commissioning � People","8299","Training Expenses","18/10/2018"
"Wolverhampton City Council","http://opendatacommunities.org/id/metropolitan-district-council/wolverhampton","Virgin Trains","68.90","Strategic Asset Management - General","4112","Public Transport","18/10/2018"
"Wolverhampton City Council","http://opendatacommunities.org/id/metropolitan-district-council/wolverhampton","WWW.GOV.UK","10.00","Revenues","8999","Services - Professional Fees","18/10/2018"
"Wolverhampton City Council","http://opendatacommunities.org/id/metropolitan-district-council/wolverhampton","CardtronicsUK","60.00","EIP Locality 3","6011","Grant Payments","18/10/2018"
"Wolverhampton City Council","http://opendatacommunities.org/id/metropolitan-district-council/wolverhampton","AMZN Mktp UK","6.24","EIP Locality 3","5942","Grant Payments","18/10/2018"
"Wolverhampton City Council","http://opendatacommunities.org/id/metropolitan-district-council/wolverhampton","DHL","26.52","CIN/CP Social Work Unit - Area 5","4215","Section 17","18/10/2018"
"Wolverhampton City Council","http://opendatacommunities.org/id/metropolitan-district-council/wolverhampton","RIBA SERVICES","116.90","Capital Programme Team","5942","Books","18/10/2018"
"Wolverhampton City Council","http://opendatacommunities.org/id/metropolitan-district-council/wolverhampton","WOLVERHAMPTON T/O","196.50","Adult Services - North","4112","Public Transport","18/10/2018"
"Wolverhampton City Council","http://opendatacommunities.org/id/metropolitan-district-council/wolverhampton","DUNELM (SOFT FURNISHIN","104.12","Ernest Bold Court","5714","Equipment - Purchase","18/10/2018"
"Wolverhampton City Council","http://opendatacommunities.org/id/metropolitan-district-council/wolverhampton","NORTHUMBERLAND CC CRD","240.00","CIN/CP Social Work Unit - Area 8","9399","Section 17","18/10/2018"
"Wolverhampton City Council","http://opendatacommunities.org/id/metropolitan-district-council/wolverhampton","BUXTONS LTD","89.60","Northicote Farm","5193","Materials","18/10/2018"
"Wolverhampton City Council","http://opendatacommunities.org/id/metropolitan-district-council/wolverhampton","TFM FARM & COUNTRY SUP","16.09","Northicote Farm","5399","Materials","18/10/2018"
"Wolverhampton City Council","http://opendatacommunities.org/id/metropolitan-district-council/wolverhampton","THE RED HOUSE","55.81","IMPACT","5691","Equipment - Purchase","17/10/2018"
"Wolverhampton City Council","http://opendatacommunities.org/id/metropolitan-district-council/wolverhampton","JAMES LISTER & SONS LT","52.65","Wednesfield Street Market","5085","Equipment - Purchase","17/10/2018"
"Wolverhampton City Council","http://opendatacommunities.org/id/metropolitan-district-council/wolverhampton","WM MORRISON FOOD.COM","81.39","Discretionary Fund","5411","R4007","17/10/2018"
"Wolverhampton City Council","http://opendatacommunities.org/id/metropolitan-district-council/wolverhampton","WWW.WOLVERHAMPTON.GOV.","13.45","EIP Locality 8","9399","Grant Payments","17/10/2018"
"Wolverhampton City Council","http://opendatacommunities.org/id/metropolitan-district-council/wolverhampton","TRAVELODGE","67.95","Safeguarding Admin Resource","3615","Services - Supplies & Services to users","17/10/2018"
"Wolverhampton City Council","http://opendatacommunities.org/id/metropolitan-district-council/wolverhampton","Trainline","42.16","Safeguarding Admin Resource","4112","Public Transport","17/10/2018"
"Wolverhampton City Council","http://opendatacommunities.org/id/metropolitan-district-council/wolverhampton","WILKO RETAIL LIMIT","58.33","LAC Transitions Team","5722","Client Allowances","17/10/2018"
"Wolverhampton City Council","http://opendatacommunities.org/id/metropolitan-district-council/wolverhampton","WWW.ARGOS.CO.UK","-53.69","LAC Transitions Team","5310","Client Allowances","17/10/2018"
"Wolverhampton City Council","http://opendatacommunities.org/id/metropolitan-district-council/wolverhampton","WWW.ARGOS.CO.UK","52.02","LAC Transitions Team","5310","Client Allowances","17/10/2018"
"Wolverhampton City Council","http://opendatacommunities.org/id/metropolitan-district-council/wolverhampton","ROYAL CARPETS","416.67","LAC Transitions Team","5713","Client Allowances","17/10/2018"
"Wolverhampton City Council","http://opendatacommunities.org/id/metropolitan-district-council/wolverhampton","ROYAL CARPETS","25.00","LAC Transitions Team","5713","Client Allowances","17/10/2018"
"Wolverhampton City Council","http://opendatacommunities.org/id/metropolitan-district-council/wolverhampton","ROYAL BK OF SCOTLAND","250.00","CIN/CP Social Work Unit - Area 6","6011","Financial Assistance In Exceptional Circ","17/10/2018"
"Wolverhampton City Council","http://opendatacommunities.org/id/metropolitan-district-council/wolverhampton","TESCO STORES 5194","204.89","Towers Outdoor Education Centre","5411","Provisions (Not for resale)","17/10/2018"
"Wolverhampton City Council","http://opendatacommunities.org/id/metropolitan-district-council/wolverhampton","MONARCH CLEANERS LTD","77.16","Towers Outdoor Education Centre","7216","Laundry Expenses","17/10/2018"
"Wolverhampton City Council","http://opendatacommunities.org/id/metropolitan-district-council/wolverhampton","CHEMSOL CYMRU LTD","124.96","Towers Outdoor Education Centre","5199","Fixtures and Fittings - Purchases","17/10/2018"
"Wolverhampton City Council","http://opendatacommunities.org/id/metropolitan-district-council/wolverhampton","WWW.NISBETS.COM","113.97","Towers Outdoor Education Centre","5964","Fixtures and Fittings - Purchases","17/10/2018"
"Wolverhampton City Council","http://opendatacommunities.org/id/metropolitan-district-council/wolverhampton","WWW.ARGOS.CO.UK","53.69","LAC Transitions Team","5310","Client Allowances","17/10/2018"
"Wolverhampton City Council","http://opendatacommunities.org/id/metropolitan-district-council/wolverhampton","WWW.NISBETS.COM","10.39","Towers Outdoor Education Centre","5964","Fixtures and Fittings - Purchases","17/10/2018"
"Wolverhampton City Council","http://opendatacommunities.org/id/metropolitan-district-council/wolverhampton","HN NUTTALL LTD","421.48","Towers Outdoor Education Centre","5085","Provisions (Not for resale)","17/10/2018"
"Wolverhampton City Council","http://opendatacommunities.org/id/metropolitan-district-council/wolverhampton","CAFFE NERO WOLVERHAMPT","4.17","Economic Development","5814","Educ Trips, Holidays, Outings, Activity","17/10/2018"
"Wolverhampton City Council","http://opendatacommunities.org/id/metropolitan-district-council/wolverhampton","SP   ANTI-BULLYING ALL","154.99","Headstart - Young People Engagement","5734","Materials","17/10/2018"
"Wolverhampton City Council","http://opendatacommunities.org/id/metropolitan-district-council/wolverhampton","WISEPOPS","74.34","City Direct","7372","Computing - Purchase of Software","17/10/2018"
"Wolverhampton City Council","http://opendatacommunities.org/id/metropolitan-district-council/wolverhampton","A & M CATERING SPECIAL","67.50","Fostering Team & Allowances","5812","Educ Trips, Holidays, Outings, Activity","17/10/2018"
"Wolverhampton City Council","http://opendatacommunities.org/id/metropolitan-district-council/wolverhampton","SAINSBURYS PFS (1340)","1.67","Mayoral Expenses","5541","Vehicle Maintenance - Repairs","17/10/2018"
"Wolverhampton City Council","http://opendatacommunities.org/id/metropolitan-district-council/wolverhampton","AMZN Mktp UK","41.97","Communications & Marketing - General","5942","Books","17/10/2018"
"Wolverhampton City Council","http://opendatacommunities.org/id/metropolitan-district-council/wolverhampton","Trainline","-158.00","Admin & Support","4112","Public Transport","17/10/2018"
"Wolverhampton City Council","http://opendatacommunities.org/id/metropolitan-district-council/wolverhampton","AMZN Mktp UK","5.70","Communications & Marketing - General","5942","Books","17/10/2018"
"Wolverhampton City Council","http://opendatacommunities.org/id/metropolitan-district-council/wolverhampton","AMZN Mktp UK","23.80","Communications & Marketing - General","5942","Books","17/10/2018"
"Wolverhampton City Council","http://opendatacommunities.org/id/metropolitan-district-council/wolverhampton","Trainline","8.69","Admin & Support","4112","Public Transport","17/10/2018"
"Wolverhampton City Council","http://opendatacommunities.org/id/metropolitan-district-council/wolverhampton","Trainline","84.84","LAC Transitions Team","4112","Client Allowances","17/10/2018"
"Wolverhampton City Council","http://opendatacommunities.org/id/metropolitan-district-council/wolverhampton","ASDA SUPERSTORE","10.30","Youth Offending Team","5411","Provisions (Not for resale)","17/10/2018"
"Wolverhampton City Council","http://opendatacommunities.org/id/metropolitan-district-council/wolverhampton","UNTOUCHABLES","11.92","Cemeteries","5231","Materials","17/10/2018"
"Wolverhampton City Council","http://opendatacommunities.org/id/metropolitan-district-council/wolverhampton","LUL TICKET MACHINE","4.90","Managing Director","4112","Public Transport","17/10/2018"
"Wolverhampton City Council","http://opendatacommunities.org/id/metropolitan-district-council/wolverhampton","AMZN Mktp UK MT2AS34L4","90.29","Strategic ICTS (ICT Serv Budget)","5942","Computing - Purchase of Hardware","17/10/2018"
"Wolverhampton City Council","http://opendatacommunities.org/id/metropolitan-district-council/wolverhampton","ASDA SUPERSTORE","7.00","EIP Locality 5","5411","Provisions (Not for resale)","17/10/2018"
"Wolverhampton City Council","http://opendatacommunities.org/id/metropolitan-district-council/wolverhampton","ROYAL CARPETS","391.67","LAC Transitions Team","5713","Client Allowances","17/10/2018"
"Wolverhampton City Council","http://opendatacommunities.org/id/metropolitan-district-council/wolverhampton","Trainline","-62.20","CIN/CP Social Work Unit - Area 2","4112","Public Transport","17/10/2018"
"Wolverhampton City Council","http://opendatacommunities.org/id/metropolitan-district-council/wolverhampton","ARGOS RETAIL GROUP","59.97","EIP Locality 1","5310","Equipment - Purchase","17/10/2018"
"Wolverhampton City Council","http://opendatacommunities.org/id/metropolitan-district-council/wolverhampton","AMZN Mktp UK","2.97","EIP Locality 3","5942","Grant Payments","17/10/2018"
"Wolverhampton City Council","http://opendatacommunities.org/id/metropolitan-district-council/wolverhampton","HOME BARGAINS WOLVERHA","8.25","Cemeteries","5251","Equipment - Purchase","17/10/2018"
"Wolverhampton City Council","http://opendatacommunities.org/id/metropolitan-district-council/wolverhampton","FACEBK FUCCSHS6C2","17.00","Education And Access","7311","Marketing \ Non-staff advertising","17/10/2018"
"Wolverhampton City Council","http://opendatacommunities.org/id/metropolitan-district-council/wolverhampton","ASDA GROCERIES ONLINE","71.42","Ernest Bold Court","5411","Provisions (Not for resale)","17/10/2018"
"Wolverhampton City Council","http://opendatacommunities.org/id/metropolitan-district-council/wolverhampton","Trainline","79.65","Head of Service - LAC","4112","Public Transport","17/10/2018"
"Wolverhampton City Council","http://opendatacommunities.org/id/metropolitan-district-council/wolverhampton","WWW.WMCA.CO.UK","90.85","CIN/CP Social Work Unit - Area 4","9399","Section 17","17/10/2018"
"Wolverhampton City Council","http://opendatacommunities.org/id/metropolitan-district-council/wolverhampton","NO 5 CHAMBERS LTD","45.00","Central Training","8111","Training Expenses","17/10/2018"
"Wolverhampton City Council","http://opendatacommunities.org/id/metropolitan-district-council/wolverhampton","WM MORRISONS STORE","11.52","Global Budgets","5411","Provisions (Not for resale)","17/10/2018"
"Wolverhampton City Council","http://opendatacommunities.org/id/metropolitan-district-council/wolverhampton","WM MORRISONS STORE","5.00","Ernest Bold Court","5411","Provisions (Not for resale)","17/10/2018"
"Wolverhampton City Council","http://opendatacommunities.org/id/metropolitan-district-council/wolverhampton","HMCOURTS-SERVICE.G","75.00","Mental Health Assessment & Care Mgmt","9222","Services - Fees and Charges","17/10/2018"
"Wolverhampton City Council","http://opendatacommunities.org/id/metropolitan-district-council/wolverhampton","Trainline","64.92","Mental Health Assessment & Care Mgmt","4112","Public Transport","17/10/2018"
"Wolverhampton City Council","http://opendatacommunities.org/id/metropolitan-district-council/wolverhampton","J VAN VLIET BIRMINGHAM","41.60","Creative Studies Delivery Area","5399","Materials for resale","17/10/2018"
"Wolverhampton City Council","http://opendatacommunities.org/id/metropolitan-district-council/wolverhampton","Trainline","34.29","CIN/CP Social Work Unit - Area 4","4112","Section 17","17/10/2018"
"Wolverhampton City Council","http://opendatacommunities.org/id/metropolitan-district-council/wolverhampton","Trainline","-7.00","CIN/CP Social Work Unit - Area 8","4112","Section 17","17/10/2018"
"Wolverhampton City Council","http://opendatacommunities.org/id/metropolitan-district-council/wolverhampton","Trainline","-7.00","CIN/CP Social Work Unit - Area 8","4112","Section 17","17/10/2018"
"Wolverhampton City Council","http://opendatacommunities.org/id/metropolitan-district-council/wolverhampton","Virgin Trains","81.00","Adoption and Residence Team & Allowances","4112","Public Transport","17/10/2018"
"Wolverhampton City Council","http://opendatacommunities.org/id/metropolitan-district-council/wolverhampton","Hotel on Booking.com","62.50","Adoption and Residence Team & Allowances","7011","Accommodation Costs","17/10/2018"
"Wolverhampton City Council","http://opendatacommunities.org/id/metropolitan-district-council/wolverhampton","CardtronicsUK","40.00","Delivery & OCE Development","6011","Financial Assistance In Exceptional Circ","17/10/2018"
"Wolverhampton City Council","http://opendatacommunities.org/id/metropolitan-district-council/wolverhampton","GRO HM PASSPORT OFFICE","7.71","LAC Transitions Team","9399","Client Allowances","17/10/2018"
"Wolverhampton City Council","http://opendatacommunities.org/id/metropolitan-district-council/wolverhampton","SCAFFOLDINGSALES","87.00","Technician","5039","Materials","16/10/2018"
"Wolverhampton City Council","http://opendatacommunities.org/id/metropolitan-district-council/wolverhampton","WWW.PHYSICALCOMPANY.CO","30.02","Aldersley Leisure Village","5941","Equipment - Purchase","16/10/2018"
"Wolverhampton City Council","http://opendatacommunities.org/id/metropolitan-district-council/wolverhampton","COSTA @ DEBENHAMS 4304","4.12","Economic Development","5814","Educ Trips, Holidays, Outings, Activity","16/10/2018"
"Wolverhampton City Council","http://opendatacommunities.org/id/metropolitan-district-council/wolverhampton","WM MORRISONS STORE","12.50","Bert Williams Leisure Centre","5411","Provisions (Not for resale)","16/10/2018"
"Wolverhampton City Council","http://opendatacommunities.org/id/metropolitan-district-council/wolverhampton","TAMESIDE METROPOLITAN","10.00","LAC Transitions Team","9399","Client Allowances","16/10/2018"
"Wolverhampton City Council","http://opendatacommunities.org/id/metropolitan-district-council/wolverhampton","AMZN Mktp UK MT52C7C44","19.07","EIP Locality 8","5942","Materials","16/10/2018"
"Wolverhampton City Council","http://opendatacommunities.org/id/metropolitan-district-council/wolverhampton","POUNDLAND LTD 1463","5.17","Youth Offending Team","5310","Equipment - Purchase","16/10/2018"
"Wolverhampton City Council","http://opendatacommunities.org/id/metropolitan-district-council/wolverhampton","Notando/SimplyBook.me","20.00","LA Role in Health Protection","4816","Computing - Purchase of Software","16/10/2018"
"Wolverhampton City Council","http://opendatacommunities.org/id/metropolitan-district-council/wolverhampton","WHERETHETRADEBUYS.CO.U","23.40","LA Role in Health Protection","5111","Computing - Purchase of Software","16/10/2018"
"Wolverhampton City Council","http://opendatacommunities.org/id/metropolitan-district-council/wolverhampton","AMZN Mktp UK","61.23","Strategic ICTS (ICT Serv Budget)","5942","Computing - Purchase of Hardware","16/10/2018"
"Wolverhampton City Council","http://opendatacommunities.org/id/metropolitan-district-council/wolverhampton","Virgin Trains","59.40","Corporate Programs","4112","Public Transport","16/10/2018"
"Wolverhampton City Council","http://opendatacommunities.org/id/metropolitan-district-council/wolverhampton","Virgin Trains","37.00","Corporate Programs","4112","Public Transport","16/10/2018"
"Wolverhampton City Council","http://opendatacommunities.org/id/metropolitan-district-council/wolverhampton","SQ  PLATINUM CHAUFFEUR","320.00","LAC Team","4121","Client Transport","16/10/2018"
"Wolverhampton City Council","http://opendatacommunities.org/id/metropolitan-district-council/wolverhampton","Trainline","19.76","SEN Special Education Admin","4112","Public Transport","16/10/2018"
"Wolverhampton City Council","http://opendatacommunities.org/id/metropolitan-district-council/wolverhampton","WIX.COM","186.26","Technical Support","5817","Computing - Purchase of Software","16/10/2018"
"Wolverhampton City Council","http://opendatacommunities.org/id/metropolitan-district-council/wolverhampton","Amazon.co.uk","70.00","Global Budgets","5969","Computing - Purchase of Hardware","16/10/2018"
"Wolverhampton City Council","http://opendatacommunities.org/id/metropolitan-district-council/wolverhampton","FS160 CLAREGATE","11.25","Independant Living Services","5541","Stationery","16/10/2018"
"Wolverhampton City Council","http://opendatacommunities.org/id/metropolitan-district-council/wolverhampton","ROBANNAS","200.00","Education And Access","7911","Equipment - Hire","16/10/2018"
"Wolverhampton City Council","http://opendatacommunities.org/id/metropolitan-district-council/wolverhampton","WEST MID TRAVEL","144.25","CIN/CP Social Work Unit - Area 5","4131","Section 17","16/10/2018"
"Wolverhampton City Council","http://opendatacommunities.org/id/metropolitan-district-council/wolverhampton","SAINSBURYS (2340)","20.25","Global Budgets","5411","Provisions (Not for resale)","16/10/2018"
"Wolverhampton City Council","http://opendatacommunities.org/id/metropolitan-district-council/wolverhampton","UNTOUCHABLES","11.25","Education Catering - General Overheads","5231","Materials","16/10/2018"
"Wolverhampton City Council","http://opendatacommunities.org/id/metropolitan-district-council/wolverhampton","UNTOUCHABLES","2.50","Education Catering - General Overheads","5231","Materials","16/10/2018"
"Wolverhampton City Council","http://opendatacommunities.org/id/metropolitan-district-council/wolverhampton","STATIONERY OFFICE BOOK","35.70","Workforce Development","5942","Books","16/10/2018"
"Wolverhampton City Council","http://opendatacommunities.org/id/metropolitan-district-council/wolverhampton","WWW.CIPS.ORG","137.00","Apprenticeships","8699","Subscriptions","16/10/2018"
"Wolverhampton City Council","http://opendatacommunities.org/id/metropolitan-district-council/wolverhampton","REGISTRARS OFFICE","10.00","Adoption and Residence Team & Allowances","8299","Services - Fees and Charges","16/10/2018"
"Wolverhampton City Council","http://opendatacommunities.org/id/metropolitan-district-council/wolverhampton","ARGOS LTD","45.82","LAC Transitions Team","5310","Client Allowances","15/10/2018"
"Wolverhampton City Council","http://opendatacommunities.org/id/metropolitan-district-council/wolverhampton","WWW.IKEA.COM","254.17","LAC Transitions Team","5712","Client Allowances","15/10/2018"
"Wolverhampton City Council","http://opendatacommunities.org/id/metropolitan-district-council/wolverhampton","WWW.IKEA.COM","398.33","LAC Transitions Team","5712","Client Allowances","15/10/2018"
"Wolverhampton City Council","http://opendatacommunities.org/id/metropolitan-district-council/wolverhampton","REGISTRARS OFFICE","11.00","CIN/CP Social Work Unit - Area 7","8299","Section 17","15/10/2018"
"Wolverhampton City Council","http://opendatacommunities.org/id/metropolitan-district-council/wolverhampton","THE POST OFFICE","4.45","Collections","9402","Comms - Postage","15/10/2018"
"Wolverhampton City Council","http://opendatacommunities.org/id/metropolitan-district-council/wolverhampton","Virgin Trains","8.30","Quality Assurance & Policies","4112","Public Transport","15/10/2018"
"Wolverhampton City Council","http://opendatacommunities.org/id/metropolitan-district-council/wolverhampton","CURRYS ONLINE","290.83","LAC Transitions Team","5732","Client Allowances","15/10/2018"
"Wolverhampton City Council","http://opendatacommunities.org/id/metropolitan-district-council/wolverhampton","MAUDESPORT LTD","32.04","LAC Transitions Team","5941","Client Allowances","15/10/2018"
"Wolverhampton City Council","http://opendatacommunities.org/id/metropolitan-district-council/wolverhampton","PREMIER INN","434.50","Adoption and Residence Team & Allowances","3811","Accommodation Costs","15/10/2018"
"Wolverhampton City Council","http://opendatacommunities.org/id/metropolitan-district-council/wolverhampton","000002200500000","250.00","CIN/CP Social Work Unit - Area 6","6011","Financial Assistance In Exceptional Circ","15/10/2018"
"Wolverhampton City Council","http://opendatacommunities.org/id/metropolitan-district-council/wolverhampton","NOVOTEL WOLVERHAMPTON","68.33","Melanie Tomlinson","7011","Services - Supplies & Services to users","15/10/2018"
"Wolverhampton City Council","http://opendatacommunities.org/id/metropolitan-district-council/wolverhampton","FACEBK  CUCCUHEAR2","500.00","Communications & Marketing - General","7311","Marketing \ Non-staff advertising","15/10/2018"
"Wolverhampton City Council","http://opendatacommunities.org/id/metropolitan-district-council/wolverhampton","GOOGLE  ADS9680351324","500.00","Communications & Marketing - General","5968","Subscriptions","15/10/2018"
"Wolverhampton City Council","http://opendatacommunities.org/id/metropolitan-district-council/wolverhampton","AMZ Hobbycraft Tradi","28.57","Headstart - Young People Engagement","4816","Materials","15/10/2018"
"Wolverhampton City Council","http://opendatacommunities.org/id/metropolitan-district-council/wolverhampton","Virgin Trains","332.00","HR Advice","4112","Public Transport","15/10/2018"
"Wolverhampton City Council","http://opendatacommunities.org/id/metropolitan-district-council/wolverhampton","SAINSBURYS (2340)","43.70","Mayoral Expenses","5411","Hospitality","15/10/2018"
"Wolverhampton City Council","http://opendatacommunities.org/id/metropolitan-district-council/wolverhampton","ITUNES.COM/BILL","2.07","LAC Education Team (LACE)","5735","Computing - Purchase of Software","15/10/2018"
"Wolverhampton City Council","http://opendatacommunities.org/id/metropolitan-district-council/wolverhampton","CURRYS ONLINE","-183.32","EIP Locality 5","5732","Grant Payments","15/10/2018"
"Wolverhampton City Council","http://opendatacommunities.org/id/metropolitan-district-council/wolverhampton","REGISTRARS OFFICE","30.00","Adoption and Residence Team & Allowances","8299","Services - Fees and Charges","15/10/2018"
"Wolverhampton City Council","http://opendatacommunities.org/id/metropolitan-district-council/wolverhampton","ASDA GROCERIES ONLINE","3.00","Upper Pendeford Farm Childrens Home","5411","Provisions (Not for resale)","15/10/2018"
"Wolverhampton City Council","http://opendatacommunities.org/id/metropolitan-district-council/wolverhampton","TV LICENSING","150.50","LAC Transitions Team","7392","Client Allowances","15/10/2018"
"Wolverhampton City Council","http://opendatacommunities.org/id/metropolitan-district-council/wolverhampton","ASDA GROCERIES ONLINE","-0.49","Upper Pendeford Farm Childrens Home","5411","Provisions (Not for resale)","15/10/2018"
"Wolverhampton City Council","http://opendatacommunities.org/id/metropolitan-district-council/wolverhampton","WAITROSE 696","27.68","Youth Offending Team","5411","Provisions (Not for resale)","15/10/2018"
"Wolverhampton City Council","http://opendatacommunities.org/id/metropolitan-district-council/wolverhampton","ASDA GROCERIES ONLINE","189.07","Upper Pendeford Farm Childrens Home","5411","Provisions (Not for resale)","15/10/2018"
"Wolverhampton City Council","http://opendatacommunities.org/id/metropolitan-district-council/wolverhampton","ASDA GROCERIES ONLINE","31.12","Creative Studies Delivery Area","5411","Provisions (Not for resale)","15/10/2018"
"Wolverhampton City Council","http://opendatacommunities.org/id/metropolitan-district-council/wolverhampton","ARRIVA TRAINS WALE","19.90","Art Gallery","4112","Public Transport","15/10/2018"
"Wolverhampton City Council","http://opendatacommunities.org/id/metropolitan-district-council/wolverhampton","SEVERN TRENT WATER","33.17","LAC Transitions Team","4900","Client Allowances","15/10/2018"
"Wolverhampton City Council","http://opendatacommunities.org/id/metropolitan-district-council/wolverhampton","SEVERN TRENT WATER","54.32","LAC Transitions Team","4900","Client Allowances","15/10/2018"
"Wolverhampton City Council","http://opendatacommunities.org/id/metropolitan-district-council/wolverhampton","HUGHES","416.67","LAC Transitions Team","5732","Client Allowances","15/10/2018"
"Wolverhampton City Council","http://opendatacommunities.org/id/metropolitan-district-council/wolverhampton","Wix.com","93.13","Technical Support","5817","Computing - Purchase of Software","15/10/2018"
"Wolverhampton City Council","http://opendatacommunities.org/id/metropolitan-district-council/wolverhampton","WIX.COM","93.13","Technical Support","5817","Computing - Purchase of Software","15/10/2018"
"Wolverhampton City Council","http://opendatacommunities.org/id/metropolitan-district-council/wolverhampton","AMZN Mktp UK","55.80","Global Budgets","5942","Computing - Purchase of Hardware","15/10/2018"
"Wolverhampton City Council","http://opendatacommunities.org/id/metropolitan-district-council/wolverhampton","ASDA GROCERIES ONLINE","59.52","Ernest Bold Court","5411","Provisions (Not for resale)","15/10/2018"
"Wolverhampton City Council","http://opendatacommunities.org/id/metropolitan-district-council/wolverhampton","HERON FOODS LTD","22.33","Ernest Bold Court","5499","Provisions (Not for resale)","15/10/2018"
"Wolverhampton City Council","http://opendatacommunities.org/id/metropolitan-district-council/wolverhampton","POST OFFICE COUNTER","8.44","CIN/CP Social Work Unit - Area 4","9402","Section 17","15/10/2018"
"Wolverhampton City Council","http://opendatacommunities.org/id/metropolitan-district-council/wolverhampton","TOOLSTATION LTD","5.32","Education Catering - General Overheads","5251","Materials","15/10/2018"
"Wolverhampton City Council","http://opendatacommunities.org/id/metropolitan-district-council/wolverhampton","ASH PLASTICS WOLVE","15.00","Education Catering - General Overheads","5399","Materials","15/10/2018"
"Wolverhampton City Council","http://opendatacommunities.org/id/metropolitan-district-council/wolverhampton","ASDA GROCERIES ONLINE","-32.42","Duke Street Bungalows","5411","Provisions (Not for resale)","15/10/2018"
"Wolverhampton City Council","http://opendatacommunities.org/id/metropolitan-district-council/wolverhampton","ASDA GROCERIES ONLINE","234.15","Duke Street Bungalows","5411","Provisions (Not for resale)","15/10/2018"
"Wolverhampton City Council","http://opendatacommunities.org/id/metropolitan-district-council/wolverhampton","AMZN Mktp UK","2.75","Archives","5942","Books","15/10/2018"
"Wolverhampton City Council","http://opendatacommunities.org/id/metropolitan-district-council/wolverhampton","CITY OF WOLVERHAMPTON","7.00","Head of Service - CINCP","9399","Services - Professional Fees","15/10/2018"
"Wolverhampton City Council","http://opendatacommunities.org/id/metropolitan-district-council/wolverhampton","CITY OF WOLVERHAMPTON","30.00","Head of Service - CINCP","9399","Services - Professional Fees","15/10/2018"
"Wolverhampton City Council","http://opendatacommunities.org/id/metropolitan-district-council/wolverhampton","ALDI 94 772","4.47","Children & Family Contact Services","5411","Provisions (Not for resale)","15/10/2018"
"Wolverhampton City Council","http://opendatacommunities.org/id/metropolitan-district-council/wolverhampton","PETS AT HOME LTD","7.49","Children & Family Contact Services","5995","Equipment - Purchase","15/10/2018"
"Wolverhampton City Council","http://opendatacommunities.org/id/metropolitan-district-council/wolverhampton","BE EVENT HIRE","600.00","Wolverhampton Indoor and Open Market","7394","Equipment - Hire","15/10/2018"
"Wolverhampton City Council","http://opendatacommunities.org/id/metropolitan-district-council/wolverhampton","AMZN Mktp UK","82.38","Northicote Farm","5942","Equipment - Purchase","15/10/2018"
"Wolverhampton City Council","http://opendatacommunities.org/id/metropolitan-district-council/wolverhampton","WWW.CITIZENCARD.COM","30.00","IMPACT","9399","Services - Fees and Charges","12/10/2018"
"Wolverhampton City Council","http://opendatacommunities.org/id/metropolitan-district-council/wolverhampton","CHRISTOPHER PLC SHOPPI","8.00","Hand Drawn Action Packed exhibition","7523","Car Allowances","12/10/2018"
"Wolverhampton City Council","http://opendatacommunities.org/id/metropolitan-district-council/wolverhampton","WILKO RETAIL LIMIT","19.17","Outdoor Events Admin","5722","Equipment - Purchase","12/10/2018"
"Wolverhampton City Council","http://opendatacommunities.org/id/metropolitan-district-council/wolverhampton","WOLVERHAMPTON CC","3.33","Headstart Phase 3","7523","Parking Fees","12/10/2018"
"Wolverhampton City Council","http://opendatacommunities.org/id/metropolitan-district-council/wolverhampton","AMZN Mktp UK MT7MS3464","6.66","EIP Locality 8","5942","Materials","12/10/2018"
"Wolverhampton City Council","http://opendatacommunities.org/id/metropolitan-district-council/wolverhampton","AMZN Mktp UK MT1TG0C44","5.49","EIP Locality 8","5942","Materials","12/10/2018"
"Wolverhampton City Council","http://opendatacommunities.org/id/metropolitan-district-council/wolverhampton","000002200500000","200.00","Childrens with Disabilities Team","6011","No Recourse to Public Funds","12/10/2018"
"Wolverhampton City Council","http://opendatacommunities.org/id/metropolitan-district-council/wolverhampton","PREMIER INN","412.50","Adoption and Residence Team & Allowances","3811","Accommodation Costs","12/10/2018"
"Wolverhampton City Council","http://opendatacommunities.org/id/metropolitan-district-council/wolverhampton","SSE","57.01","LAC Transitions Team","4900","Client Allowances","12/10/2018"
"Wolverhampton City Council","http://opendatacommunities.org/id/metropolitan-district-council/wolverhampton","WATERSTONES","17.99","Archives","5942","Books","12/10/2018"
"Wolverhampton City Council","http://opendatacommunities.org/id/metropolitan-district-council/wolverhampton","ARGOS RETAIL GROUP","31.98","EIP Locality 1","5310","Grant Payments","12/10/2018"
"Wolverhampton City Council","http://opendatacommunities.org/id/metropolitan-district-council/wolverhampton","TESCO STORES 5397","1.00","EIP Locality 1","5411","Grant Payments","12/10/2018"
"Wolverhampton City Council","http://opendatacommunities.org/id/metropolitan-district-council/wolverhampton","AMZN Mktp UK","1,099.08","Older People Provider Management","5942","Equipment - Purchase","12/10/2018"
"Wolverhampton City Council","http://opendatacommunities.org/id/metropolitan-district-council/wolverhampton","CardtronicsUK","200.00","MASH","6011","Section 17","12/10/2018"
"Wolverhampton City Council","http://opendatacommunities.org/id/metropolitan-district-council/wolverhampton","SAINSBURYS SACAT 2040","13.30","Duke Street Bungalows","5411","Equipment - Purchase","12/10/2018"
"Wolverhampton City Council","http://opendatacommunities.org/id/metropolitan-district-council/wolverhampton","MIDLAND HOTEL","275.00","Children & Young People Support Costs","7011","Services - Supplies & Services to users","12/10/2018"
"Wolverhampton City Council","http://opendatacommunities.org/id/metropolitan-district-council/wolverhampton","POUNDSTRETCHER 147","119.80","Civic Centre","5714","Equipment - Purchase","12/10/2018"
"Wolverhampton City Council","http://opendatacommunities.org/id/metropolitan-district-council/wolverhampton","ARGOS RETAIL GROUP","19.16","EIP Locality 3","5310","Grant Payments","12/10/2018"
"Wolverhampton City Council","http://opendatacommunities.org/id/metropolitan-district-council/wolverhampton","THE POST OFFICE","7.30","Education And Access","9402","Comms - Postage","12/10/2018"
"Wolverhampton City Council","http://opendatacommunities.org/id/metropolitan-district-council/wolverhampton","WP-CENTRAL TAXIS L","322.00","LAC Team","4121","Client Transport","12/10/2018"
"Wolverhampton City Council","http://opendatacommunities.org/id/metropolitan-district-council/wolverhampton","TESCO DELIVERY SAVER2","3.49","Towers Outdoor Education Centre","5968","Provisions (Not for resale)","12/10/2018"
"Wolverhampton City Council","http://opendatacommunities.org/id/metropolitan-district-council/wolverhampton","AMZN Mktp UK","53.09","Education And Access","5942","Materials","12/10/2018"
"Wolverhampton City Council","http://opendatacommunities.org/id/metropolitan-district-council/wolverhampton","AMZN Mktp UK","25.32","Education And Access","5942","Materials","12/10/2018"
"Wolverhampton City Council","http://opendatacommunities.org/id/metropolitan-district-council/wolverhampton","AMZN Mktp UK","23.32","Education And Access","5942","Materials","12/10/2018"
"Wolverhampton City Council","http://opendatacommunities.org/id/metropolitan-district-council/wolverhampton","AMZN Mktp UK","13.82","Education And Access","5942","Materials","12/10/2018"
"Wolverhampton City Council","http://opendatacommunities.org/id/metropolitan-district-council/wolverhampton","AMZN Mktp UK","16.16","Education And Access","5942","Materials","12/10/2018"
"Wolverhampton City Council","http://opendatacommunities.org/id/metropolitan-district-council/wolverhampton","AMZN Mktp UK","22.41","Education And Access","5942","Materials","12/10/2018"
"Wolverhampton City Council","http://opendatacommunities.org/id/metropolitan-district-council/wolverhampton","ARGOS DIRECT","28.28","Fostering Team & Allowances","5310","Equipment - Purchase","12/10/2018"
"Wolverhampton City Council","http://opendatacommunities.org/id/metropolitan-district-council/wolverhampton","MSC INDUSTRIAL SUPPLY","23.26","Ground Maintenance East","5085","Protective Clothing","12/10/2018"
"Wolverhampton City Council","http://opendatacommunities.org/id/metropolitan-district-council/wolverhampton","PRODUCT SUPPORT AG","6.66","Headstart - Young People Engagement","5968","Computing - Maint Agreements","12/10/2018"
"Wolverhampton City Council","http://opendatacommunities.org/id/metropolitan-district-council/wolverhampton","PRODUCT SUPPORT AG","6.66","Headstart - Young People Engagement","5968","Computing - Maint Agreements","12/10/2018"
"Wolverhampton City Council","http://opendatacommunities.org/id/metropolitan-district-council/wolverhampton","CUMMINGS BROTHERS LOCK","5.00","Ernest Bold Court","7399","Equipment - R & M","12/10/2018"
"Wolverhampton City Council","http://opendatacommunities.org/id/metropolitan-district-council/wolverhampton","NAMESCO","14.99","SWP - Infrastructure","4816","Computing - Purchase of Software","12/10/2018"
"Wolverhampton City Council","http://opendatacommunities.org/id/metropolitan-district-council/wolverhampton","Virgin Trains","256.10","LAC Education Team (LACE)","4112","Public Transport","12/10/2018"
"Wolverhampton City Council","http://opendatacommunities.org/id/metropolitan-district-council/wolverhampton","Trainline","50.80","LAC Education Team (LACE)","4112","Public Transport","12/10/2018"
"Wolverhampton City Council","http://opendatacommunities.org/id/metropolitan-district-council/wolverhampton","Trainline","43.18","LAC Education Team (LACE)","4112","Public Transport","12/10/2018"
"Wolverhampton City Council","http://opendatacommunities.org/id/metropolitan-district-council/wolverhampton","PAYPAL  LOGGERHEADP","209.00","Junior Attendance Centre","8211","Training Expenses","12/10/2018"
"Wolverhampton City Council","http://opendatacommunities.org/id/metropolitan-district-council/wolverhampton","DENNISWILLECOM","-138.90","LAC Transitions Team","5999","Client Allowances","12/10/2018"
"Wolverhampton City Council","http://opendatacommunities.org/id/metropolitan-district-council/wolverhampton","ASDA SUPERSTORE","165.83","LAC Transitions Team","5411","Client Allowances","12/10/2018"
"Wolverhampton City Council","http://opendatacommunities.org/id/metropolitan-district-council/wolverhampton","DENNISWILLECOM","69.45","LAC Transitions Team","5999","Client Allowances","12/10/2018"
"Wolverhampton City Council","http://opendatacommunities.org/id/metropolitan-district-council/wolverhampton","REGISTRARS OFFICE","50.00","Adoption and Residence Team & Allowances","8299","Services - Fees and Charges","12/10/2018"
"Wolverhampton City Council","http://opendatacommunities.org/id/metropolitan-district-council/wolverhampton","AMZN Mktp UK","13.98","Strategic ICTS (ICT Serv Budget)","5942","Computing - Purchase of Hardware","12/10/2018"
"Wolverhampton City Council","http://opendatacommunities.org/id/metropolitan-district-council/wolverhampton","Audible.co.uk","7.99","Upper Pendeford Farm Childrens Home","5968","Subscriptions","12/10/2018"
"Wolverhampton City Council","http://opendatacommunities.org/id/metropolitan-district-council/wolverhampton","AMZN Mktp UK","21.66","Creative Studies Delivery Area","5942","Equipment - Purchase","12/10/2018"
"Wolverhampton City Council","http://opendatacommunities.org/id/metropolitan-district-council/wolverhampton","UNTOUCHABLES","10.41","Education Catering - General Overheads","5231","Materials","12/10/2018"
"Wolverhampton City Council","http://opendatacommunities.org/id/metropolitan-district-council/wolverhampton","THE POST OFFICE","387.80","Legal Services","9402","Comms - Postage","12/10/2018"
"Wolverhampton City Council","http://opendatacommunities.org/id/metropolitan-district-council/wolverhampton","POST OFFICE COUNTER","13.92","Arbor Scheme","9402","Comms - Postage","12/10/2018"
"Wolverhampton City Council","http://opendatacommunities.org/id/metropolitan-district-council/wolverhampton","BP MOTO KNUTSFORD SOUT","16.70","Arbor Scheme","5541","Petrol","12/10/2018"
"Wolverhampton City Council","http://opendatacommunities.org/id/metropolitan-district-council/wolverhampton","NAMESCO","20.39","Art Gallery","4816","Computing - Purchase of Software","11/10/2018"
"Wolverhampton City Council","http://opendatacommunities.org/id/metropolitan-district-council/wolverhampton","Trainline","8.69","SEN Special Education Admin","4112","Public Transport","11/10/2018"
"Wolverhampton City Council","http://opendatacommunities.org/id/metropolitan-district-council/wolverhampton","AMZN Mktp UK","44.04","EIP Locality 3","5942","Equipment - Purchase","11/10/2018"
"Wolverhampton City Council","http://opendatacommunities.org/id/metropolitan-district-council/wolverhampton","AMZN Mktp UK MT3F98F74","2.66","EIP Locality 8","5942","Materials","11/10/2018"
"Wolverhampton City Council","http://opendatacommunities.org/id/metropolitan-district-council/wolverhampton","HOLIDAY INN SB","80.00","Safeguarding Admin Resource","7011","Services - Supplies & Services to users","11/10/2018"
"Wolverhampton City Council","http://opendatacommunities.org/id/metropolitan-district-council/wolverhampton","BARCLAYS","250.00","CIN/CP Social Work Unit - Area 6","6011","Financial Assistance In Exceptional Circ","11/10/2018"
"Wolverhampton City Council","http://opendatacommunities.org/id/metropolitan-district-council/wolverhampton","AMZN Mktp UK","14.98","Education And Access","5942","Materials","11/10/2018"
"Wolverhampton City Council","http://opendatacommunities.org/id/metropolitan-district-council/wolverhampton","WOLVERHAMPTON TROPHY C","6.25","Education Business Partnership","5999","Equipment - Purchase","11/10/2018"
"Wolverhampton City Council","http://opendatacommunities.org/id/metropolitan-district-council/wolverhampton","RESPONSTER PLUS PLAN","14.89","City Direct","5734","Computing - Purchase of Software","11/10/2018"
"Wolverhampton City Council","http://opendatacommunities.org/id/metropolitan-district-council/wolverhampton","WP-CENTRAL TAXIS L","90.00","LAC Education Team (LACE)","4121","Client Transport","11/10/2018"
"Wolverhampton City Council","http://opendatacommunities.org/id/metropolitan-district-council/wolverhampton","WANNA LTD","100.84","SWP - Infrastructure","4214","Comms - Postage","11/10/2018"
"Wolverhampton City Council","http://opendatacommunities.org/id/metropolitan-district-council/wolverhampton","TVLICENSING.CO.UK","125.42","LAC Transitions Team","7392","Client Allowances","11/10/2018"
"Wolverhampton City Council","http://opendatacommunities.org/id/metropolitan-district-council/wolverhampton","PAYPAL  BARNARDOS","45.00","EIP Locality 5","8999","Training Expenses","11/10/2018"
"Wolverhampton City Council","http://opendatacommunities.org/id/metropolitan-district-council/wolverhampton","AMZN Mktp UK","29.72","EIP Locality 5","5942","Stationery","11/10/2018"
"Wolverhampton City Council","http://opendatacommunities.org/id/metropolitan-district-council/wolverhampton","WWW.GUITARGUITAR.CO.UK","190.00","Foundation Studies","5733","Equipment - Purchase","11/10/2018"
"Wolverhampton City Council","http://opendatacommunities.org/id/metropolitan-district-council/wolverhampton","POUNDSTRETCHER 703","28.32","LAC Transitions Team","5714","Client Allowances","11/10/2018"
"Wolverhampton City Council","http://opendatacommunities.org/id/metropolitan-district-council/wolverhampton","WWW.DISPLAYWIZARD.CO.U","572.99","Travelwise","7399","Equipment - Purchase","11/10/2018"
"Wolverhampton City Council","http://opendatacommunities.org/id/metropolitan-district-council/wolverhampton","POUNDLAND LTD 1463","6.71","EIP Locality 1","5310","Equipment - Purchase","11/10/2018"
"Wolverhampton City Council","http://opendatacommunities.org/id/metropolitan-district-council/wolverhampton","ARGOS RETAIL GROUP","35.49","EIP Locality 1","5310","Grant Payments","11/10/2018"
"Wolverhampton City Council","http://opendatacommunities.org/id/metropolitan-district-council/wolverhampton","POST OFFICE COUNTER","115.20","Education Catering - General Overheads","9402","Comms - Postage","11/10/2018"
"Wolverhampton City Council","http://opendatacommunities.org/id/metropolitan-district-council/wolverhampton","TOOLSTATION LTD","14.97","Education Catering - General Overheads","5251","Equipment - Purchase","11/10/2018"
"Wolverhampton City Council","http://opendatacommunities.org/id/metropolitan-district-council/wolverhampton","WWW.CIPS.ORG","137.00","Apprenticeships","8699","Subscriptions","11/10/2018"
"Wolverhampton City Council","http://opendatacommunities.org/id/metropolitan-district-council/wolverhampton","WWW.CIPS.ORG","137.00","Apprenticeships","8699","Subscriptions","11/10/2018"
"Wolverhampton City Council","http://opendatacommunities.org/id/metropolitan-district-council/wolverhampton","EB  CELEBRATING MUSICA","10.00","Music Support Team","7399","Services - Professional Fees","11/10/2018"
"Wolverhampton City Council","http://opendatacommunities.org/id/metropolitan-district-council/wolverhampton","Trainline","39.62","CIN/CP Social Work Unit - Area 8","4112","Section 17","11/10/2018"
"Wolverhampton City Council","http://opendatacommunities.org/id/metropolitan-district-council/wolverhampton","Amazon Prime","7.99","CIN/CP Social Work Unit - Area 8","5968","Subscriptions","11/10/2018"
"Wolverhampton City Council","http://opendatacommunities.org/id/metropolitan-district-council/wolverhampton","CARVERS","105.66","Northicote Farm","5211","Materials","11/10/2018"
"Wolverhampton City Council","http://opendatacommunities.org/id/metropolitan-district-council/wolverhampton","AMZN Mktp UK","9.24","Northicote Farm","5942","Equipment - Purchase","11/10/2018"
"Wolverhampton City Council","http://opendatacommunities.org/id/metropolitan-district-council/wolverhampton","Amazon.co.uk","75.00","Document Centre - General","5969","Equipment - Purchase","10/10/2018"
"Wolverhampton City Council","http://opendatacommunities.org/id/metropolitan-district-council/wolverhampton","WWW.WMCA.CO.UK","56.50","IMPACT","9399","Services - Fees and Charges","10/10/2018"
"Wolverhampton City Council","http://opendatacommunities.org/id/metropolitan-district-council/wolverhampton","DULUX DECORATOR CENTRE","349.74","Contemporary Gallery","5198","Materials","10/10/2018"
"Wolverhampton City Council","http://opendatacommunities.org/id/metropolitan-district-council/wolverhampton","Trainline","194.67","Revenues","4112","Public Transport","10/10/2018"
"Wolverhampton City Council","http://opendatacommunities.org/id/metropolitan-district-council/wolverhampton","WM MORRISON FOOD.COM","114.60","Discretionary Fund","5411","R4007","10/10/2018"
"Wolverhampton City Council","http://opendatacommunities.org/id/metropolitan-district-council/wolverhampton","B&M RETAIL","126.97","LAC Transitions Team","5310","Client Allowances","10/10/2018"
"Wolverhampton City Council","http://opendatacommunities.org/id/metropolitan-district-council/wolverhampton","WWW.WOLVERHAMPTON.GOV.","13.45","EIP Locality 8","9399","Grant Payments","10/10/2018"
"Wolverhampton City Council","http://opendatacommunities.org/id/metropolitan-district-council/wolverhampton","ARGOS RETAIL GROUP","53.33","LAC Transitions Team","5310","Client Allowances","10/10/2018"
"Wolverhampton City Council","http://opendatacommunities.org/id/metropolitan-district-council/wolverhampton","ARGOS RETAIL GROUP","49.99","LAC Transitions Team","5310","Client Allowances","10/10/2018"
"Wolverhampton City Council","http://opendatacommunities.org/id/metropolitan-district-council/wolverhampton","AMZN Mktp UK","17.24","Ernest Bold Court","5942","Stationery","10/10/2018"
"Wolverhampton City Council","http://opendatacommunities.org/id/metropolitan-district-council/wolverhampton","WP JOB MANAGER","36.96","City Direct","7372","Computing - Purchase of Software","10/10/2018"
"Wolverhampton City Council","http://opendatacommunities.org/id/metropolitan-district-council/wolverhampton","ENVATOMARKET43788607","21.79","City Direct","5815","Computing - Purchase of Software","10/10/2018"
"Wolverhampton City Council","http://opendatacommunities.org/id/metropolitan-district-council/wolverhampton","OXYGEN FREEJUMPING","266.67","LAC Education Team (LACE)","7997","Educ Trips, Holidays, Outings, Activity","10/10/2018"
"Wolverhampton City Council","http://opendatacommunities.org/id/metropolitan-district-council/wolverhampton","CURRYS ONLINE","183.32","EIP Locality 5","5732","Grant Payments","10/10/2018"
"Wolverhampton City Council","http://opendatacommunities.org/id/metropolitan-district-council/wolverhampton","Amazon.co.uk","45.00","Strategic ICTS (ICT Serv Budget)","5969","Equipment - Purchase","10/10/2018"
"Wolverhampton City Council","http://opendatacommunities.org/id/metropolitan-district-council/wolverhampton","Trainline","65.02","LAC Transitions Team","4112","Public Transport","10/10/2018"
"Wolverhampton City Council","http://opendatacommunities.org/id/metropolitan-district-council/wolverhampton","ASDA GROCERIES ONLINE","5.00","Upper Pendeford Farm Childrens Home","5411","Provisions (Not for resale)","10/10/2018"
"Wolverhampton City Council","http://opendatacommunities.org/id/metropolitan-district-council/wolverhampton","PAYPAL  JCHOPTIMIZE","21.72","ICT Services","4816","Computing - Purchase of Software","10/10/2018"
"Wolverhampton City Council","http://opendatacommunities.org/id/metropolitan-district-council/wolverhampton","SSC RODBASTON","117.00","LAC Transitions Team","8220","Client Allowances","10/10/2018"
"Wolverhampton City Council","http://opendatacommunities.org/id/metropolitan-district-council/wolverhampton","EB  DELIVERING A UK EL","305.00","Corporate Programs","7399","Events","10/10/2018"
"Wolverhampton City Council","http://opendatacommunities.org/id/metropolitan-district-council/wolverhampton","ARGOS RETAIL GROUP","50.00","Older People Provider Management","5310","Equipment - Purchase","10/10/2018"
"Wolverhampton City Council","http://opendatacommunities.org/id/metropolitan-district-council/wolverhampton","Virgin Trains","27.60","MASH","4112","Section 17","10/10/2018"
"Wolverhampton City Council","http://opendatacommunities.org/id/metropolitan-district-council/wolverhampton","ASDA SUPERSTORE","30.00","EIP Locality 3","5411","Grant Payments","10/10/2018"
"Wolverhampton City Council","http://opendatacommunities.org/id/metropolitan-district-council/wolverhampton","B & Q 1243","37.82","Bradley Resource Centre","5211","Equipment - R & M","10/10/2018"
"Wolverhampton City Council","http://opendatacommunities.org/id/metropolitan-district-council/wolverhampton","B & Q 1243","54.17","Bradley Resource Centre","5211","Equipment - R & M","10/10/2018"
"Wolverhampton City Council","http://opendatacommunities.org/id/metropolitan-district-council/wolverhampton","J VAN VLIET BIRMINGHAM","81.72","Creative Studies Delivery Area","5399","Materials for resale","10/10/2018"
"Wolverhampton City Council","http://opendatacommunities.org/id/metropolitan-district-council/wolverhampton","Trainline","55.07","CIN/CP Social Work Unit - Area 4","4112","Section 17","10/10/2018"
"Wolverhampton City Council","http://opendatacommunities.org/id/metropolitan-district-council/wolverhampton","PAYPAL  FREEBITS UK","39.90","Planning","5732","Equipment - Purchase","10/10/2018"
"Wolverhampton City Council","http://opendatacommunities.org/id/metropolitan-district-council/wolverhampton","Virgin Trains","93.50","Members Expenses","4112","Public Transport","10/10/2018"
"Wolverhampton City Council","http://opendatacommunities.org/id/metropolitan-district-council/wolverhampton","CARVER/WOLVERHAMPTON/L","113.14","Northicote Farm","5211","Materials","10/10/2018"
"Wolverhampton City Council","http://opendatacommunities.org/id/metropolitan-district-council/wolverhampton","DULUX DECORATOR CENTRE","3.56","Contemporary Gallery","5198","Materials","09/10/2018"
"Wolverhampton City Council","http://opendatacommunities.org/id/metropolitan-district-council/wolverhampton","ARGOS LTD","304.14","LAC Transitions Team","5310","Client Allowances","09/10/2018"
"Wolverhampton City Council","http://opendatacommunities.org/id/metropolitan-district-council/wolverhampton","NETFLIX.COM","-5.99","Technician","4899","Comms - Telephone Rental","09/10/2018"
"Wolverhampton City Council","http://opendatacommunities.org/id/metropolitan-district-council/wolverhampton","AMZN Mktp UK","34.94","Outdoor Events Admin","5942","Books","09/10/2018"
"Wolverhampton City Council","http://opendatacommunities.org/id/metropolitan-district-council/wolverhampton","LIDDELL ELECTRICAL DIS","13.44","Statutory Services (10RM)","5065","Equipment - R & M","09/10/2018"
"Wolverhampton City Council","http://opendatacommunities.org/id/metropolitan-district-council/wolverhampton","WOLVERHAMPTON CC","4.58","Headstart Phase 3","7523","Parking Fees","09/10/2018"
"Wolverhampton City Council","http://opendatacommunities.org/id/metropolitan-district-council/wolverhampton","WOLVERHAMPTON CC","3.33","Headstart Phase 3","7523","Parking Fees","09/10/2018"
"Wolverhampton City Council","http://opendatacommunities.org/id/metropolitan-district-council/wolverhampton","WWW.WMCA.CO.UK","88.00","CIN/CP Social Work Unit - Area 3","9399","Client Transport","09/10/2018"
"Wolverhampton City Council","http://opendatacommunities.org/id/metropolitan-district-council/wolverhampton","Trainline","17.83","Safeguarding Admin Resource","4112","Public Transport","09/10/2018"
"Wolverhampton City Council","http://opendatacommunities.org/id/metropolitan-district-council/wolverhampton","Allpay  MIDLAND HEART","73.65","LAC Transitions Team","8398","Client Allowances","09/10/2018"
"Wolverhampton City Council","http://opendatacommunities.org/id/metropolitan-district-council/wolverhampton","ARGOS RETAIL GROUP","33.33","LAC Transitions Team","5310","Client Allowances","09/10/2018"
"Wolverhampton City Council","http://opendatacommunities.org/id/metropolitan-district-council/wolverhampton","WWW.IKEA.COM","379.79","LAC Transitions Team","5712","Client Allowances","09/10/2018"
"Wolverhampton City Council","http://opendatacommunities.org/id/metropolitan-district-council/wolverhampton","TEX MEADOWVALEGAR","16.93","Towers Outdoor Education Centre","5541","Petrol","09/10/2018"
"Wolverhampton City Council","http://opendatacommunities.org/id/metropolitan-district-council/wolverhampton","TESCO STORES 5194","136.57","Towers Outdoor Education Centre","5411","Provisions (Not for resale)","09/10/2018"
"Wolverhampton City Council","http://opendatacommunities.org/id/metropolitan-district-council/wolverhampton","SPAR SIOP TANDDERWEN","161.94","Towers Outdoor Education Centre","5411","Provisions (Not for resale)","09/10/2018"
"Wolverhampton City Council","http://opendatacommunities.org/id/metropolitan-district-council/wolverhampton","WOLVERHAMPTON CC","3.33","Headstart - Young People Engagement","7523","Parking Fees","09/10/2018"
"Wolverhampton City Council","http://opendatacommunities.org/id/metropolitan-district-council/wolverhampton","Trainline","24.54","Education Business Partnership","4112","Public Transport","09/10/2018"
"Wolverhampton City Council","http://opendatacommunities.org/id/metropolitan-district-council/wolverhampton","Virgin Trains","61.70","Admin & Support","4112","Public Transport","09/10/2018"
"Wolverhampton City Council","http://opendatacommunities.org/id/metropolitan-district-council/wolverhampton","Trainline","155.96","Admin & Support","4112","Public Transport","09/10/2018"
"Wolverhampton City Council","http://opendatacommunities.org/id/metropolitan-district-council/wolverhampton","Trainline","219.96","Admin & Support","4112","Public Transport","09/10/2018"
"Wolverhampton City Council","http://opendatacommunities.org/id/metropolitan-district-council/wolverhampton","NAMESCO","34.99","City Direct","4816","Computing - Purchase of Software","09/10/2018"
"Wolverhampton City Council","http://opendatacommunities.org/id/metropolitan-district-council/wolverhampton","Trainline","10.31","LAC Education Team (LACE)","4112","Public Transport","09/10/2018"
"Wolverhampton City Council","http://opendatacommunities.org/id/metropolitan-district-council/wolverhampton","WWW.WOLVERHAMPTON.GOV.","72.64","LAC Transitions Team","9399","Client Allowances","09/10/2018"
"Wolverhampton City Council","http://opendatacommunities.org/id/metropolitan-district-council/wolverhampton","WWW.WOLVERHAMPTON.GOV.","75.86","LAC Transitions Team","9399","Client Allowances","09/10/2018"
"Wolverhampton City Council","http://opendatacommunities.org/id/metropolitan-district-council/wolverhampton","WWW.WOLVERHAMPTON.GOV.","74.74","LAC Transitions Team","9399","Client Allowances","09/10/2018"
"Wolverhampton City Council","http://opendatacommunities.org/id/metropolitan-district-council/wolverhampton","Oyster Online","-10.00","Delivery & OCE Development","4112","Public Transport","09/10/2018"
"Wolverhampton City Council","http://opendatacommunities.org/id/metropolitan-district-council/wolverhampton","Amazon Prime","6.66","Upper Pendeford Farm Childrens Home","5968","Subscriptions","09/10/2018"
"Wolverhampton City Council","http://opendatacommunities.org/id/metropolitan-district-council/wolverhampton","SQ  PLATINUM CHAUFFEUR","400.00","LAC Team","4121","Client Transport","09/10/2018"
"Wolverhampton City Council","http://opendatacommunities.org/id/metropolitan-district-council/wolverhampton","ARRIVA TRAINS WALE","19.90","Art Gallery","4112","Public Transport","09/10/2018"
"Wolverhampton City Council","http://opendatacommunities.org/id/metropolitan-district-council/wolverhampton","WIX.COM","46.57","Technical Support","5968","Subscriptions","09/10/2018"
"Wolverhampton City Council","http://opendatacommunities.org/id/metropolitan-district-council/wolverhampton","ASDA GROCERIES ONLINE","-0.28","Ernest Bold Court","5411","Provisions (Not for resale)","09/10/2018"
"Wolverhampton City Council","http://opendatacommunities.org/id/metropolitan-district-council/wolverhampton","ASDA GROCERIES ONLINE","75.99","Ernest Bold Court","5411","Provisions (Not for resale)","09/10/2018"
"Wolverhampton City Council","http://opendatacommunities.org/id/metropolitan-district-council/wolverhampton","SAINSBURYS 2040","9.67","Duke Street Bungalows","5411","R4010","09/10/2018"
"Wolverhampton City Council","http://opendatacommunities.org/id/metropolitan-district-council/wolverhampton","Wix.com","93.13","Technical Support","5817","Computing - Purchase of Software","09/10/2018"
"Wolverhampton City Council","http://opendatacommunities.org/id/metropolitan-district-council/wolverhampton","SAINSBURYS 2040","22.22","Duke Street Bungalows","5411","R4010","09/10/2018"
"Wolverhampton City Council","http://opendatacommunities.org/id/metropolitan-district-council/wolverhampton","Amazon.co.uk","12.99","Global Budgets","5969","Books","09/10/2018"
"Wolverhampton City Council","http://opendatacommunities.org/id/metropolitan-district-council/wolverhampton","Trainline","18.95","CIN/CP Social Work Unit - Area 7","4112","Public Transport","09/10/2018"
"Wolverhampton City Council","http://opendatacommunities.org/id/metropolitan-district-council/wolverhampton","WP-CENTRAL TAXIS L","187.20","CIN/CP Social Work Unit - Area 7","4121","Client Transport","09/10/2018"
"Wolverhampton City Council","http://opendatacommunities.org/id/metropolitan-district-council/wolverhampton","Trainline","371.35","Legal Services","4112","Public Transport","09/10/2018"
"Wolverhampton City Council","http://opendatacommunities.org/id/metropolitan-district-council/wolverhampton","Trainline","9.25","Legal Services","4112","Public Transport","09/10/2018"
"Wolverhampton City Council","http://opendatacommunities.org/id/metropolitan-district-council/wolverhampton","Trainline","-7.00","CIN/CP Social Work Unit - Area 8","4112","Section 17","09/10/2018"
"Wolverhampton City Council","http://opendatacommunities.org/id/metropolitan-district-council/wolverhampton","Trainline","-7.00","CIN/CP Social Work Unit - Area 8","4112","Section 17","09/10/2018"
"Wolverhampton City Council","http://opendatacommunities.org/id/metropolitan-district-council/wolverhampton","RIBA SERVICES","79.16","Heath Town","5942","Books","09/10/2018"
"Wolverhampton City Council","http://opendatacommunities.org/id/metropolitan-district-council/wolverhampton","AMZN MKTP UK AMAZON.CO","20.39","Members Expenses","5942","Equipment - Purchase","09/10/2018"
"Wolverhampton City Council","http://opendatacommunities.org/id/metropolitan-district-council/wolverhampton","AMZN Mktp UK","28.66","Wolverhampton Indoor and Open Market","5942","Equipment - Purchase","09/10/2018"
"Wolverhampton City Council","http://opendatacommunities.org/id/metropolitan-district-council/wolverhampton","Virgin Trains","130.00","Scrutiny & Transparency","4112","Public Transport","09/10/2018"
"Wolverhampton City Council","http://opendatacommunities.org/id/metropolitan-district-council/wolverhampton","AMZN Mktp UK","20.10","School Improvement","5942","Equipment - Purchase","08/10/2018"
"Wolverhampton City Council","http://opendatacommunities.org/id/metropolitan-district-council/wolverhampton","Trainline","78.33","Visitor Economy - Development","4112","Public Transport","08/10/2018"
"Wolverhampton City Council","http://opendatacommunities.org/id/metropolitan-district-council/wolverhampton","WWW.COWLINGANDWILCOX.C","141.65","Celebrating Age-ACE","5970","Equipment - Purchase","08/10/2018"
"Wolverhampton City Council","http://opendatacommunities.org/id/metropolitan-district-council/wolverhampton","CARVER/WOLVERHAMPTON/L","45.11","Passenger Transport - General","5211","Materials","08/10/2018"
"Wolverhampton City Council","http://opendatacommunities.org/id/metropolitan-district-council/wolverhampton","WOLVERHAMPTON CC","2.50","Headstart Phase 3","7523","Parking Fees","08/10/2018"
"Wolverhampton City Council","http://opendatacommunities.org/id/metropolitan-district-council/wolverhampton","CT WOLVERHAMPTON","133.33","LAC Transitions Team","8398","Client Allowances","08/10/2018"
"Wolverhampton City Council","http://opendatacommunities.org/id/metropolitan-district-council/wolverhampton","NORTHERN POTTERY LTD","80.53","Towers Outdoor Education Centre","5999","Fixtures and Fittings - Purchases","08/10/2018"
"Wolverhampton City Council","http://opendatacommunities.org/id/metropolitan-district-council/wolverhampton","FUEL CARD SERVICES LTD","212.86","Towers Outdoor Education Centre","7399","Petrol","08/10/2018"
"Wolverhampton City Council","http://opendatacommunities.org/id/metropolitan-district-council/wolverhampton","HARLECH FOODSERVICE LT","181.63","Towers Outdoor Education Centre","5422","Provisions (Not for resale)","08/10/2018"
"Wolverhampton City Council","http://opendatacommunities.org/id/metropolitan-district-council/wolverhampton","AMZN Mktp UK","71.99","City Direct","5942","Books","08/10/2018"
"Wolverhampton City Council","http://opendatacommunities.org/id/metropolitan-district-council/wolverhampton","C L JONES HEAD OFFICE","94.02","Towers Outdoor Education Centre","5211","Fixtures and Fittings - Purchases","08/10/2018"
"Wolverhampton City Council","http://opendatacommunities.org/id/metropolitan-district-council/wolverhampton","SPORTSDIRECT.COM","129.94","Aldersley Leisure Village","5941","Equipment - Purchase","08/10/2018"
"Wolverhampton City Council","http://opendatacommunities.org/id/metropolitan-district-council/wolverhampton","MSC INDUSTRIAL SUPPLY","81.87","Ground Maintenance East","5085","Protective Clothing","08/10/2018"
"Wolverhampton City Council","http://opendatacommunities.org/id/metropolitan-district-council/wolverhampton","GOOGLE  ADS3317949200","500.00","Communications & Marketing - General","5968","Subscriptions","08/10/2018"
"Wolverhampton City Council","http://opendatacommunities.org/id/metropolitan-district-council/wolverhampton","Amazon.co.uk","143.94","Headstart - Young People Engagement","5969","Equipment - Purchase","08/10/2018"
"Wolverhampton City Council","http://opendatacommunities.org/id/metropolitan-district-council/wolverhampton","WM MORRISONS STORE","1.00","Ernest Bold Court","5411","Provisions (Not for resale)","08/10/2018"
"Wolverhampton City Council","http://opendatacommunities.org/id/metropolitan-district-council/wolverhampton","MARKS&SPENCER PLC SACA","2.58","Mayoral Expenses","5411","Hospitality","08/10/2018"
"Wolverhampton City Council","http://opendatacommunities.org/id/metropolitan-district-council/wolverhampton","WP-CENTRAL TAXIS L","172.70","LAC Education Team (LACE)","4121","Client Transport","08/10/2018"
"Wolverhampton City Council","http://opendatacommunities.org/id/metropolitan-district-council/wolverhampton","ARGOS RETAIL GROUP","125.98","LAC Transitions Team","5310","Equipment - Purchase","08/10/2018"
"Wolverhampton City Council","http://opendatacommunities.org/id/metropolitan-district-council/wolverhampton","Virgin Trains","230.70","Delivery & OCE Development","4112","Public Transport","08/10/2018"
"Wolverhampton City Council","http://opendatacommunities.org/id/metropolitan-district-council/wolverhampton","ASDA GROCERIES ONLINE","-5.38","Upper Pendeford Farm Childrens Home","5411","Provisions (Not for resale)","08/10/2018"
"Wolverhampton City Council","http://opendatacommunities.org/id/metropolitan-district-council/wolverhampton","ASDA GROCERIES ONLINE","200.15","Upper Pendeford Farm Childrens Home","5411","Provisions (Not for resale)","08/10/2018"
"Wolverhampton City Council","http://opendatacommunities.org/id/metropolitan-district-council/wolverhampton","Amazon.co.uk","116.66","Upper Pendeford Farm Childrens Home","5969","Equipment - Purchase","08/10/2018"
"Wolverhampton City Council","http://opendatacommunities.org/id/metropolitan-district-council/wolverhampton","AMZN Mktp UK","8.18","Upper Pendeford Farm Childrens Home","5942","Books","08/10/2018"
"Wolverhampton City Council","http://opendatacommunities.org/id/metropolitan-district-council/wolverhampton","ASDA GROCERIES ONLINE","31.20","Creative Studies Delivery Area","5411","Provisions (Not for resale)","08/10/2018"
"Wolverhampton City Council","http://opendatacommunities.org/id/metropolitan-district-council/wolverhampton","WWW.CARESHOP.CO.UK","19.18","Ernest Bold Court","5999","Medical Fees","08/10/2018"
"Wolverhampton City Council","http://opendatacommunities.org/id/metropolitan-district-council/wolverhampton","GRO HM PASSPORT OFFICE","46.80","Adoption and Residence Team & Allowances","9399","Services - Fees and Charges","08/10/2018"
"Wolverhampton City Council","http://opendatacommunities.org/id/metropolitan-district-council/wolverhampton","IZ  D & K TRADING (MID","81.50","Wolverhampton Indoor and Open Market","5999","Equipment - Purchase","08/10/2018"
"Wolverhampton City Council","http://opendatacommunities.org/id/metropolitan-district-council/wolverhampton","ASDA GROCERIES ONLINE","-1.00","Duke Street Bungalows","5411","Provisions (Not for resale)","08/10/2018"
"Wolverhampton City Council","http://opendatacommunities.org/id/metropolitan-district-council/wolverhampton","ASDA GROCERIES ONLINE","-0.08","Duke Street Bungalows","5411","Provisions (Not for resale)","08/10/2018"
"Wolverhampton City Council","http://opendatacommunities.org/id/metropolitan-district-council/wolverhampton","ASDA GROCERIES ONLINE","165.12","Duke Street Bungalows","5411","Provisions (Not for resale)","08/10/2018"
"Wolverhampton City Council","http://opendatacommunities.org/id/metropolitan-district-council/wolverhampton","Virgin Trains","48.00","LAC Team","4112","Public Transport","08/10/2018"
"Wolverhampton City Council","http://opendatacommunities.org/id/metropolitan-district-council/wolverhampton","Virgin Trains","145.70","Capital Programme Team","4112","Public Transport","08/10/2018"
"Wolverhampton City Council","http://opendatacommunities.org/id/metropolitan-district-council/wolverhampton","WP-CENTRAL TAXIS L","276.00","LAC Team","4121","Client Transport","08/10/2018"
"Wolverhampton City Council","http://opendatacommunities.org/id/metropolitan-district-council/wolverhampton","HERON FOODS LTD","15.71","Ernest Bold Court","5499","Provisions (Not for resale)","08/10/2018"
"Wolverhampton City Council","http://opendatacommunities.org/id/metropolitan-district-council/wolverhampton","ASDA GROCERIES ONLINE","64.66","Ernest Bold Court","5411","Provisions (Not for resale)","08/10/2018"
"Wolverhampton City Council","http://opendatacommunities.org/id/metropolitan-district-council/wolverhampton","MIDLAND HOTEL","330.00","Service Director Adults","7011","Accommodation Costs","08/10/2018"
"Wolverhampton City Council","http://opendatacommunities.org/id/metropolitan-district-council/wolverhampton","POST OFFICE COUNTER","18.19","CIN/CP Social Work Unit - Area 4","9402","Section 17","08/10/2018"
"Wolverhampton City Council","http://opendatacommunities.org/id/metropolitan-district-council/wolverhampton","Virgin Trains","182.00","Strategic ICTS (ICT Serv Budget)","4112","Public Transport","08/10/2018"
"Wolverhampton City Council","http://opendatacommunities.org/id/metropolitan-district-council/wolverhampton","HIGHSTREETVOCUHERS","249.25","IMPACT","8641","Educ Trips, Holidays, Outings, Activity","08/10/2018"
"Wolverhampton City Council","http://opendatacommunities.org/id/metropolitan-district-council/wolverhampton","B&M RETAIL LTD","60.79","LAC Transitions Team","5310","Client Allowances","08/10/2018"
"Wolverhampton City Council","http://opendatacommunities.org/id/metropolitan-district-council/wolverhampton","ARGOS LTD","74.17","LAC Transitions Team","5310","Client Allowances","08/10/2018"
"Wolverhampton City Council","http://opendatacommunities.org/id/metropolitan-district-council/wolverhampton","ARGOS LTD","135.79","LAC Transitions Team","5310","Client Allowances","08/10/2018"
"Wolverhampton City Council","http://opendatacommunities.org/id/metropolitan-district-council/wolverhampton","ARGOS LTD","199.14","LAC Transitions Team","5310","Client Allowances","08/10/2018"
"Wolverhampton City Council","http://opendatacommunities.org/id/metropolitan-district-council/wolverhampton","ARGOS LTD","39.17","LAC Transitions Team","5310","Client Allowances","08/10/2018"
"Wolverhampton City Council","http://opendatacommunities.org/id/metropolitan-district-council/wolverhampton","LOYD 37 CHURCH STREET","200.00","Duke Street Bungalows","6011","Provisions (Not for resale)","08/10/2018"
"Wolverhampton City Council","http://opendatacommunities.org/id/metropolitan-district-council/wolverhampton","LAG EDCTION SVC","200.00","Central Training","8398","Training Expenses","08/10/2018"
"Wolverhampton City Council","http://opendatacommunities.org/id/metropolitan-district-council/wolverhampton","WWW.WESTMINSTER-BRIEFI","465.00","Workforce Development","8244","Training Expenses","08/10/2018"
"Wolverhampton City Council","http://opendatacommunities.org/id/metropolitan-district-council/wolverhampton","THE COAL AUTHORITY","190.32","Disposal Costs","9399","Services - Professional Fees","08/10/2018"
"Wolverhampton City Council","http://opendatacommunities.org/id/metropolitan-district-council/wolverhampton","PAYPAL  PUNTERSPUBL","34.17","Fleet Management","5942","Books","08/10/2018"
"Wolverhampton City Council","http://opendatacommunities.org/id/metropolitan-district-council/wolverhampton","AMZN MKTP UK AMAZON.CO","37.99","Patching","5942","Equipment - Purchase","08/10/2018"
"Wolverhampton City Council","http://opendatacommunities.org/id/metropolitan-district-council/wolverhampton","WWW.MUSICROOM.COM","29.99","Music Support Team","5733","Equipment - Purchase","08/10/2018"
"Wolverhampton City Council","http://opendatacommunities.org/id/metropolitan-district-council/wolverhampton","KONICA MINOLTA BUSINES","259.31","Music Support Team","7399","Equipment - R & M","08/10/2018"
"Wolverhampton City Council","http://opendatacommunities.org/id/metropolitan-district-council/wolverhampton","FORESTART LIMITED","401.00","Landscape","5261","Materials","08/10/2018"
"Wolverhampton City Council","http://opendatacommunities.org/id/metropolitan-district-council/wolverhampton","SAINSBURYS","100.00","Duke Street Bungalows","6011","Provisions (Not for resale)","08/10/2018"
"Wolverhampton City Council","http://opendatacommunities.org/id/metropolitan-district-council/wolverhampton","HOME BARGAINS","6.38","Duke Street Bungalows","5251","R4010","08/10/2018"
"Wolverhampton City Council","http://opendatacommunities.org/id/metropolitan-district-council/wolverhampton","B&M RETAIL LTD","4.99","Duke Street Bungalows","5310","R4010","08/10/2018"
"Wolverhampton City Council","http://opendatacommunities.org/id/metropolitan-district-council/wolverhampton","AMZN Mktp UK","19.17","Outdoor Events Admin","5942","Books","05/10/2018"
"Wolverhampton City Council","http://opendatacommunities.org/id/metropolitan-district-council/wolverhampton","Amazon.co.uk","40.83","CIN/CP Social Work Unit - Area 5","5969","Section 17","05/10/2018"
"Wolverhampton City Council","http://opendatacommunities.org/id/metropolitan-district-council/wolverhampton","Amazon.co.uk","40.83","CIN/CP Social Work Unit - Area 5","5969","Section 17","05/10/2018"
"Wolverhampton City Council","http://opendatacommunities.org/id/metropolitan-district-council/wolverhampton","Amazon.co.uk","14.42","Adoption and Residence Team & Allowances","5969","Stationery","05/10/2018"
"Wolverhampton City Council","http://opendatacommunities.org/id/metropolitan-district-council/wolverhampton","POST OFFICE COUNTER","156.00","Adoption and Residence Team & Allowances","9402","Comms - Postage","05/10/2018"
"Wolverhampton City Council","http://opendatacommunities.org/id/metropolitan-district-council/wolverhampton","POST OFFICE COUNTER","15.90","Adoption and Residence Team & Allowances","9402","Comms - Postage","05/10/2018"
"Wolverhampton City Council","http://opendatacommunities.org/id/metropolitan-district-council/wolverhampton","AMZN Mktp UK","5.48","Adoption and Residence Team & Allowances","5942","Stationery","05/10/2018"
"Wolverhampton City Council","http://opendatacommunities.org/id/metropolitan-district-council/wolverhampton","ALBRIGHTON HARDWARE","2.17","Aldersley Leisure Village","5251","Equipment - Purchase","05/10/2018"
"Wolverhampton City Council","http://opendatacommunities.org/id/metropolitan-district-council/wolverhampton","Virgin Trains","202.00","Fostering Team & Allowances","4112","Public Transport","05/10/2018"
"Wolverhampton City Council","http://opendatacommunities.org/id/metropolitan-district-council/wolverhampton","ASDA SUPERSTORE","27.54","LAC Transitions Team","5411","Client Allowances","05/10/2018"
"Wolverhampton City Council","http://opendatacommunities.org/id/metropolitan-district-council/wolverhampton","MSC INDUSTRIAL SUPPLY","5.94","Ground Maintenance East","5085","Grounds Maintenance - Non Contract","05/10/2018"
"Wolverhampton City Council","http://opendatacommunities.org/id/metropolitan-district-council/wolverhampton","TVLICENSING.CO.UK","125.42","Aldersley Leisure Village","7392","Services - Consultants","05/10/2018"
"Wolverhampton City Council","http://opendatacommunities.org/id/metropolitan-district-council/wolverhampton","AMZ ywearable","-71.99","City Direct","5999","Equipment - Purchase","05/10/2018"
"Wolverhampton City Council","http://opendatacommunities.org/id/metropolitan-district-council/wolverhampton","HOTJAR","81.33","City Direct","5045","Computing - Purchase of Hardware","05/10/2018"
"Wolverhampton City Council","http://opendatacommunities.org/id/metropolitan-district-council/wolverhampton","THE POST OFFICE","4.58","Cemeteries","9402","Comms - Postage","05/10/2018"
"Wolverhampton City Council","http://opendatacommunities.org/id/metropolitan-district-council/wolverhampton","Virgin Trains","92.00","LAC Team","4112","Public Transport","05/10/2018"
"Wolverhampton City Council","http://opendatacommunities.org/id/metropolitan-district-council/wolverhampton","SCREWFIX DIRECT","99.97","Central Costs","5211","Materials","05/10/2018"
"Wolverhampton City Council","http://opendatacommunities.org/id/metropolitan-district-council/wolverhampton","S & B WASTE","171.00","Beckminster","4900","R5003","05/10/2018"
"Wolverhampton City Council","http://opendatacommunities.org/id/metropolitan-district-council/wolverhampton","AMZN Mktp UK","37.06","ICT Services","5942","Computing - Purchase of Hardware","05/10/2018"
"Wolverhampton City Council","http://opendatacommunities.org/id/metropolitan-district-council/wolverhampton","ARRIVA TRAINS WALE","36.30","Art Gallery","4112","Public Transport","05/10/2018"
"Wolverhampton City Council","http://opendatacommunities.org/id/metropolitan-district-council/wolverhampton","Amazon Prime","6.66","Mental Health Assessment & Care Mgmt","5968","Subscriptions","05/10/2018"
"Wolverhampton City Council","http://opendatacommunities.org/id/metropolitan-district-council/wolverhampton","Amazon Prime","-7.99","Vulnerable Young Persons Team","5968","Subscriptions","05/10/2018"
"Wolverhampton City Council","http://opendatacommunities.org/id/metropolitan-district-council/wolverhampton","Amazon Prime","-7.99","Vulnerable Young Persons Team","5968","Subscriptions","05/10/2018"
"Wolverhampton City Council","http://opendatacommunities.org/id/metropolitan-district-council/wolverhampton","Amazon Prime","-6.66","Vulnerable Young Persons Team","5968","Subscriptions","05/10/2018"
"Wolverhampton City Council","http://opendatacommunities.org/id/metropolitan-district-council/wolverhampton","AMZN MKTP UK AMAZON.CO","60.82","Specialist Support Service - North","5942","Equipment - Purchase","05/10/2018"
"Wolverhampton City Council","http://opendatacommunities.org/id/metropolitan-district-council/wolverhampton","Amazon Prime","7.99","Education And Access","5968","Subscriptions","05/10/2018"
"Wolverhampton City Council","http://opendatacommunities.org/id/metropolitan-district-council/wolverhampton","WP-CENTRAL TAXIS L","414.00","LAC Team","4121","Client Transport","05/10/2018"
"Wolverhampton City Council","http://opendatacommunities.org/id/metropolitan-district-council/wolverhampton","GRO HM PASSPORT OFFICE","-23.40","Head of Service - CINCP","9399","Services - Professional Fees","05/10/2018"
"Wolverhampton City Council","http://opendatacommunities.org/id/metropolitan-district-council/wolverhampton","NOVOTEL WOLVERHAMPTON","185.00","Equalities","7011","Accommodation Costs","05/10/2018"
"Wolverhampton City Council","http://opendatacommunities.org/id/metropolitan-district-council/wolverhampton","NOVOTEL WOLVERHAMPTON","185.00","Equalities","7011","Accommodation Costs","05/10/2018"
"Wolverhampton City Council","http://opendatacommunities.org/id/metropolitan-district-council/wolverhampton","Trainline","51.51","CIN/CP Social Work Unit - Area 4","4112","Section 17","05/10/2018"
"Wolverhampton City Council","http://opendatacommunities.org/id/metropolitan-district-council/wolverhampton","NOVOTEL WOLVERHAMPTON","185.00","Equalities","7011","Accommodation Costs","05/10/2018"
"Wolverhampton City Council","http://opendatacommunities.org/id/metropolitan-district-council/wolverhampton","NOVOTEL WOLVERHAMPTON","185.00","Equalities","7011","Accommodation Costs","05/10/2018"
"Wolverhampton City Council","http://opendatacommunities.org/id/metropolitan-district-council/wolverhampton","NOVOTEL WOLVERHAMPTON","185.00","Equalities","7011","Accommodation Costs","05/10/2018"
"Wolverhampton City Council","http://opendatacommunities.org/id/metropolitan-district-council/wolverhampton","AMZN MKTP UK AMAZON.CO","19.79","Music Support Team","5942","Equipment - Purchase","05/10/2018"
"Wolverhampton City Council","http://opendatacommunities.org/id/metropolitan-district-council/wolverhampton","POST OFFICE COUNTER","18.00","Music Support Team","9402","Stationery","05/10/2018"
"Wolverhampton City Council","http://opendatacommunities.org/id/metropolitan-district-council/wolverhampton","Trainline","51.51","CIN/CP Social Work Unit - Area 4","4112","Section 17","05/10/2018"
"Wolverhampton City Council","http://opendatacommunities.org/id/metropolitan-district-council/wolverhampton","WEBFLOW.COM","667.06","Strategic ICTS (ICT Serv Budget)","7372","Services - Professional Fees","04/10/2018"
"Wolverhampton City Council","http://opendatacommunities.org/id/metropolitan-district-council/wolverhampton","ALBRIGHTON FEEDS LIMIT","31.33","Bonfire","5995","Equipment - Purchase","04/10/2018"
"Wolverhampton City Council","http://opendatacommunities.org/id/metropolitan-district-council/wolverhampton","WILKO RETAIL LIMIT","7.50","Art Gallery","5722","Equipment - Purchase","04/10/2018"
"Wolverhampton City Council","http://opendatacommunities.org/id/metropolitan-district-council/wolverhampton","WWW.CARESHOP.CO.UK","26.64","Ernest Bold Court","5999","Equipment - Purchase","04/10/2018"
"Wolverhampton City Council","http://opendatacommunities.org/id/metropolitan-district-council/wolverhampton","WOLVERHAMPTON CC","2.50","Headstart Phase 3","7523","Parking Fees","04/10/2018"
"Wolverhampton City Council","http://opendatacommunities.org/id/metropolitan-district-council/wolverhampton","IKEA LIMITED","54.00","LAC Transitions Team","5712","Client Allowances","04/10/2018"
"Wolverhampton City Council","http://opendatacommunities.org/id/metropolitan-district-council/wolverhampton","PAYPAL  BARNARDOS","45.00","EIP Locality 1","8999","Training Expenses","04/10/2018"
"Wolverhampton City Council","http://opendatacommunities.org/id/metropolitan-district-council/wolverhampton","TESCO STORES 5194","-2.25","Towers Outdoor Education Centre","5411","Provisions (Not for resale)","04/10/2018"
"Wolverhampton City Council","http://opendatacommunities.org/id/metropolitan-district-council/wolverhampton","000002200500000","250.00","CIN/CP Social Work Unit - Area 6","6011","Financial Assistance In Exceptional Circ","04/10/2018"
"Wolverhampton City Council","http://opendatacommunities.org/id/metropolitan-district-council/wolverhampton","THE RANGE","3.32","Fostering Team & Allowances","5311","Equipment - Purchase","04/10/2018"
"Wolverhampton City Council","http://opendatacommunities.org/id/metropolitan-district-council/wolverhampton","AMZN Mktp UK","71.99","City Direct","5942","Books","04/10/2018"
"Wolverhampton City Council","http://opendatacommunities.org/id/metropolitan-district-council/wolverhampton","WWW.UKPLC.CO.UK","92.48","Electoral Registration","1520","Equipment - R & M","04/10/2018"
"Wolverhampton City Council","http://opendatacommunities.org/id/metropolitan-district-council/wolverhampton","CURRYS S/S","79.15","Strategic ICTS (ICT Serv Budget)","5732","Equipment - Purchase","04/10/2018"
"Wolverhampton City Council","http://opendatacommunities.org/id/metropolitan-district-council/wolverhampton","Amazon.co.uk","23.44","Strategic ICTS (ICT Serv Budget)","5969","Equipment - Purchase","04/10/2018"
"Wolverhampton City Council","http://opendatacommunities.org/id/metropolitan-district-council/wolverhampton","WWW.GDHA.COM","99.00","Upper Pendeford Farm Childrens Home","5065","Equipment - R & M","04/10/2018"
"Wolverhampton City Council","http://opendatacommunities.org/id/metropolitan-district-council/wolverhampton","HMCOURTS-SERVICE.G","20.00","LAC Team","9222","Financial Assistance In Exceptional Circ","04/10/2018"
"Wolverhampton City Council","http://opendatacommunities.org/id/metropolitan-district-council/wolverhampton","GRO HM PASSPORT OFFICE","9.25","LAC Team","9399","Financial Assistance In Exceptional Circ","04/10/2018"
"Wolverhampton City Council","http://opendatacommunities.org/id/metropolitan-district-council/wolverhampton","AMZN MKTP UK AMAZON.CO","4.16","Language Studies Delivery Area","5942","Equipment - Purchase","04/10/2018"
"Wolverhampton City Council","http://opendatacommunities.org/id/metropolitan-district-council/wolverhampton","Amazon.co.uk","11.98","Archives","5969","Books","04/10/2018"
"Wolverhampton City Council","http://opendatacommunities.org/id/metropolitan-district-council/wolverhampton","AMZN Mktp UK","22.82","Archives","5942","Equipment - Purchase","04/10/2018"
"Wolverhampton City Council","http://opendatacommunities.org/id/metropolitan-district-council/wolverhampton","AMZN Mktp UK","11.08","Archives","5942","Books","04/10/2018"
"Wolverhampton City Council","http://opendatacommunities.org/id/metropolitan-district-council/wolverhampton","Trainline","90.51","Vulnerable Young Persons Team","4112","Public Transport","04/10/2018"
"Wolverhampton City Council","http://opendatacommunities.org/id/metropolitan-district-council/wolverhampton","Virgin Trains","10.10","Children & Young People Support Costs","4112","Public Transport","04/10/2018"
"Wolverhampton City Council","http://opendatacommunities.org/id/metropolitan-district-council/wolverhampton","Amazon.co.uk","10.94","Global Budgets","5969","Books","04/10/2018"
"Wolverhampton City Council","http://opendatacommunities.org/id/metropolitan-district-council/wolverhampton","Amazon.co.uk","10.99","Global Budgets","5969","Books","04/10/2018"
"Wolverhampton City Council","http://opendatacommunities.org/id/metropolitan-district-council/wolverhampton","ASDA SUPERSTORE","30.00","EIP Locality 3","5411","Grant Payments","04/10/2018"
"Wolverhampton City Council","http://opendatacommunities.org/id/metropolitan-district-council/wolverhampton","AMZN Mktp UK","8.75","Archives","5942","Books","04/10/2018"
"Wolverhampton City Council","http://opendatacommunities.org/id/metropolitan-district-council/wolverhampton","WWW.GOV.UK","10.00","Legal Services","8999","Services - Professional Fees","04/10/2018"
"Wolverhampton City Council","http://opendatacommunities.org/id/metropolitan-district-council/wolverhampton","GRO HM PASSPORT OFFICE","23.40","Head of Service - CINCP","9399","Services - Professional Fees","04/10/2018"
"Wolverhampton City Council","http://opendatacommunities.org/id/metropolitan-district-council/wolverhampton","CITY OF WOLVERHAMPTON","10.00","Head of Service - CINCP","9399","Services - Professional Fees","04/10/2018"
"Wolverhampton City Council","http://opendatacommunities.org/id/metropolitan-district-council/wolverhampton","Trainline","57.40","Inclusion Support","4112","Public Transport","04/10/2018"
"Wolverhampton City Council","http://opendatacommunities.org/id/metropolitan-district-council/wolverhampton","VWG WOLVERHAMPTON TPS","17.50","Fleet Management","5013","Equipment - Purchase","04/10/2018"
"Wolverhampton City Council","http://opendatacommunities.org/id/metropolitan-district-council/wolverhampton","AMZN Mktp UK","108.32","EIP Locality 7","5942","Grant Payments","04/10/2018"
"Wolverhampton City Council","http://opendatacommunities.org/id/metropolitan-district-council/wolverhampton","Trainline","24.54","School Standards Training & Safeguard","4112","Public Transport","03/10/2018"
"Wolverhampton City Council","http://opendatacommunities.org/id/metropolitan-district-council/wolverhampton","WM MORRISON FOOD.COM","89.33","Discretionary Fund","5411","Materials","03/10/2018"
"Wolverhampton City Council","http://opendatacommunities.org/id/metropolitan-district-council/wolverhampton","Trainline","24.54","School Standards Training & Safeguard","4112","Public Transport","03/10/2018"
"Wolverhampton City Council","http://opendatacommunities.org/id/metropolitan-district-council/wolverhampton","WILKO.COM","47.50","Outdoor Events Admin","5399","Equipment - Purchase","03/10/2018"
"Wolverhampton City Council","http://opendatacommunities.org/id/metropolitan-district-council/wolverhampton","WOLVERHAMPTON CC","8.33","Headstart Phase 3","7523","Parking Fees","03/10/2018"
"Wolverhampton City Council","http://opendatacommunities.org/id/metropolitan-district-council/wolverhampton","WWW.WOLVERHAMPTON.GOV.","15.00","EIP Locality 8","9399","Grant Payments","03/10/2018"
"Wolverhampton City Council","http://opendatacommunities.org/id/metropolitan-district-council/wolverhampton","CardtronicsUK","101.85","Childrens with Disabilities Team","6011","Section 17","03/10/2018"
"Wolverhampton City Council","http://opendatacommunities.org/id/metropolitan-district-council/wolverhampton","CardtronicsUK","251.85","Childrens with Disabilities Team","6011","Financial Assistance In Exceptional Circ","03/10/2018"
"Wolverhampton City Council","http://opendatacommunities.org/id/metropolitan-district-council/wolverhampton","ROYAL BK OF SCOTLAND","250.00","CIN/CP Social Work Unit - Area 6","6011","Financial Assistance In Exceptional Circ","03/10/2018"
"Wolverhampton City Council","http://opendatacommunities.org/id/metropolitan-district-council/wolverhampton","TESCO STORES 5194","120.15","Towers Outdoor Education Centre","5411","Provisions (Not for resale)","03/10/2018"
"Wolverhampton City Council","http://opendatacommunities.org/id/metropolitan-district-council/wolverhampton","FAST KEY SERVICES LIMI","6.05","Towers Outdoor Education Centre","7399","Fixtures and Fittings - Purchases","03/10/2018"
"Wolverhampton City Council","http://opendatacommunities.org/id/metropolitan-district-council/wolverhampton","WOLVERHAMPTON SST","6.50","Economic Development","4112","Public Transport","03/10/2018"
"Wolverhampton City Council","http://opendatacommunities.org/id/metropolitan-district-council/wolverhampton","POST OFFICE COUNTER","259.17","Fostering Team & Allowances","9402","Comms - Postage","03/10/2018"
"Wolverhampton City Council","http://opendatacommunities.org/id/metropolitan-district-council/wolverhampton","WOLVERHAMPTON CC","3.33","Headstart - Young People Engagement","7523","Parking Fees","03/10/2018"
"Wolverhampton City Council","http://opendatacommunities.org/id/metropolitan-district-council/wolverhampton","BLOOMS MENSWEAR","7.49","Mayoral Expenses","5611","Clothing / Uniforms","03/10/2018"
"Wolverhampton City Council","http://opendatacommunities.org/id/metropolitan-district-council/wolverhampton","B&M RETAIL","89.96","LAC Transitions Team","5310","Client Allowances","03/10/2018"
"Wolverhampton City Council","http://opendatacommunities.org/id/metropolitan-district-council/wolverhampton","DUNELM (SOFT FURNISHIN","60.00","LAC Transitions Team","5714","Client Allowances","03/10/2018"
"Wolverhampton City Council","http://opendatacommunities.org/id/metropolitan-district-council/wolverhampton","ASDA SUPERSTORE","7.64","EIP Locality 6","5411","Provisions (Not for resale)","03/10/2018"
"Wolverhampton City Council","http://opendatacommunities.org/id/metropolitan-district-council/wolverhampton","Virgin Trains","68.90","Audit Services","4112","Public Transport","03/10/2018"
"Wolverhampton City Council","http://opendatacommunities.org/id/metropolitan-district-council/wolverhampton","Amazon Prime","6.66","Central Baths","5968","Subscriptions","03/10/2018"
"Wolverhampton City Council","http://opendatacommunities.org/id/metropolitan-district-council/wolverhampton","WWW.WOLVERHAMPTON.GOV.","128.80","LAC Transitions Team","9399","Client Allowances","03/10/2018"
"Wolverhampton City Council","http://opendatacommunities.org/id/metropolitan-district-council/wolverhampton","WWW.WOLVERHAMPTON.GOV.","500.00","LAC Transitions Team","9399","Client Allowances","03/10/2018"
"Wolverhampton City Council","http://opendatacommunities.org/id/metropolitan-district-council/wolverhampton","Amazon.co.uk","31.78","LAC Transitions Team","5969","Client Allowances","03/10/2018"
"Wolverhampton City Council","http://opendatacommunities.org/id/metropolitan-district-council/wolverhampton","WILKO RETAIL LIMIT","13.33","Headstart - Employability","5722","Stationery","03/10/2018"
"Wolverhampton City Council","http://opendatacommunities.org/id/metropolitan-district-council/wolverhampton","PAYPAL  BECOMINGSUR","50.00","EIP Locality 1","8999","Services - Professional Fees","03/10/2018"
"Wolverhampton City Council","http://opendatacommunities.org/id/metropolitan-district-council/wolverhampton","ARGOS RETAIL GROUP","34.99","Older People Provider Management","5310","Equipment - Purchase","03/10/2018"
"Wolverhampton City Council","http://opendatacommunities.org/id/metropolitan-district-council/wolverhampton","BIRMINGHAMTELECOM","95.93","MASH","4812","Comms - Mobile Telephones","03/10/2018"
"Wolverhampton City Council","http://opendatacommunities.org/id/metropolitan-district-council/wolverhampton","1&1 INTERNET LIMITED","29.20","Learning Technologies","4816","Computing - Purchase of Software","03/10/2018"
"Wolverhampton City Council","http://opendatacommunities.org/id/metropolitan-district-council/wolverhampton","SAINSBURYS SACAT 2040","6.25","Duke Street Bungalows","5411","Provisions (Not for resale)","03/10/2018"
"Wolverhampton City Council","http://opendatacommunities.org/id/metropolitan-district-council/wolverhampton","AMZN Mktp UK","4.49","Global Budgets","5942","Books","03/10/2018"
"Wolverhampton City Council","http://opendatacommunities.org/id/metropolitan-district-council/wolverhampton","WEST MIDLANDS EMPLOYER","65.00","Central Training","7392","Training Expenses","03/10/2018"
"Wolverhampton City Council","http://opendatacommunities.org/id/metropolitan-district-council/wolverhampton","Trainline","63.20","Legal Services","4112","Public Transport","03/10/2018"
"Wolverhampton City Council","http://opendatacommunities.org/id/metropolitan-district-council/wolverhampton","AMZN Mktp UK","10.30","Global Budgets","5942","Books","03/10/2018"
"Wolverhampton City Council","http://opendatacommunities.org/id/metropolitan-district-council/wolverhampton","WWW.ICO.GOV.UK","40.00","Members Expenses","9399","Subscriptions","03/10/2018"
"Wolverhampton City Council","http://opendatacommunities.org/id/metropolitan-district-council/wolverhampton","WWW.ICO.GOV.UK","40.00","Members Expenses","9399","Subscriptions","03/10/2018"
"Wolverhampton City Council","http://opendatacommunities.org/id/metropolitan-district-council/wolverhampton","WWW.ICO.GOV.UK","40.00","Members Expenses","9399","Subscriptions","03/10/2018"
"Wolverhampton City Council","http://opendatacommunities.org/id/metropolitan-district-council/wolverhampton","CO-OPERATIVE FOOD","4.14","Education And Access","5411","Provisions (Not for resale)","03/10/2018"
"Wolverhampton City Council","http://opendatacommunities.org/id/metropolitan-district-council/wolverhampton","Trainline","78.74","Director of Education","4112","Public Transport","02/10/2018"
"Wolverhampton City Council","http://opendatacommunities.org/id/metropolitan-district-council/wolverhampton","WM MORRISONS STORE","4.12","Ernest Bold Court","5411","Provisions (Not for resale)","02/10/2018"
"Wolverhampton City Council","http://opendatacommunities.org/id/metropolitan-district-council/wolverhampton","Trainline","60.96","Research & Development","4112","Public Transport","02/10/2018"
"Wolverhampton City Council","http://opendatacommunities.org/id/metropolitan-district-council/wolverhampton","ASDA GROCERIES ONLINE","45.71","EIP Locality 4","5411","Grant Payments","02/10/2018"
"Wolverhampton City Council","http://opendatacommunities.org/id/metropolitan-district-council/wolverhampton","CURRYS ONLINE","379.15","Fostering Team & Allowances","5732","Equipment - Purchase","02/10/2018"
"Wolverhampton City Council","http://opendatacommunities.org/id/metropolitan-district-council/wolverhampton","BOCONLINE.CO.UK","50.84","WV Active Marketing","5722","Equipment - Purchase","02/10/2018"
"Wolverhampton City Council","http://opendatacommunities.org/id/metropolitan-district-council/wolverhampton","BOCONLINE.CO.UK","50.84","WV Active Marketing","5722","Equipment - Purchase","02/10/2018"
"Wolverhampton City Council","http://opendatacommunities.org/id/metropolitan-district-council/wolverhampton","AMZN MKTP UK AMAZON.CO","9.99","WV Active Marketing","5942","Books","02/10/2018"
"Wolverhampton City Council","http://opendatacommunities.org/id/metropolitan-district-council/wolverhampton","Trainline","91.64","LAC Transitions Team","4112","Client Allowances","02/10/2018"
"Wolverhampton City Council","http://opendatacommunities.org/id/metropolitan-district-council/wolverhampton","MANCHESTER CITY COUNCI","-22.00","Adoption and Residence Team & Allowances","7523","Services - Fees and Charges","02/10/2018"
"Wolverhampton City Council","http://opendatacommunities.org/id/metropolitan-district-council/wolverhampton","Oyster Online","10.00","Delivery & OCE Development","4112","Public Transport","02/10/2018"
"Wolverhampton City Council","http://opendatacommunities.org/id/metropolitan-district-council/wolverhampton","AMZN Mktp UK","27.00","Central Baths","5942","Equipment - Purchase","02/10/2018"
"Wolverhampton City Council","http://opendatacommunities.org/id/metropolitan-district-council/wolverhampton","SQ  PLATINUM CHAUFFEUR","400.00","LAC Team","4121","Client Transport","02/10/2018"
"Wolverhampton City Council","http://opendatacommunities.org/id/metropolitan-district-council/wolverhampton","POUNDLAND LTD 1463","8.00","Foundation Studies","5310","Equipment - Purchase","02/10/2018"
"Wolverhampton City Council","http://opendatacommunities.org/id/metropolitan-district-council/wolverhampton","POST OFFICE COUNTER","201.00","Vulnerable Young Persons Team","9402","Comms - Postage","02/10/2018"
"Wolverhampton City Council","http://opendatacommunities.org/id/metropolitan-district-council/wolverhampton","Amazon Prime","7.99","Vulnerable Young Persons Team","5968","Subscriptions","02/10/2018"
"Wolverhampton City Council","http://opendatacommunities.org/id/metropolitan-district-council/wolverhampton","WIX.COM","93.13","Technical Support","5817","Computing - Purchase of Software","02/10/2018"
"Wolverhampton City Council","http://opendatacommunities.org/id/metropolitan-district-council/wolverhampton","123-REG.CO.UK","29.97","Technical Support","4816","Computing - Purchase of Software","02/10/2018"
"Wolverhampton City Council","http://opendatacommunities.org/id/metropolitan-district-council/wolverhampton","WICKES","14.17","Community Enablement","5211","Materials","02/10/2018"
"Wolverhampton City Council","http://opendatacommunities.org/id/metropolitan-district-council/wolverhampton","AMZN Mktp UK","14.97","Education And Access","5942","Equipment - Purchase","02/10/2018"
"Wolverhampton City Council","http://opendatacommunities.org/id/metropolitan-district-council/wolverhampton","AMZN Mktp UK","7.49","Education And Access","5942","Equipment - Purchase","02/10/2018"
"Wolverhampton City Council","http://opendatacommunities.org/id/metropolitan-district-council/wolverhampton","ASDA GROCERIES ONLINE","65.16","Ernest Bold Court","5411","Provisions (Not for resale)","02/10/2018"
"Wolverhampton City Council","http://opendatacommunities.org/id/metropolitan-district-council/wolverhampton","Virgin Trains","8.70","Private Hire Vehicles","4112","Services - Fees and Charges","02/10/2018"
"Wolverhampton City Council","http://opendatacommunities.org/id/metropolitan-district-council/wolverhampton","PRACTICE EN","258.00","Central Training","7299","Training Expenses","02/10/2018"
"Wolverhampton City Council","http://opendatacommunities.org/id/metropolitan-district-council/wolverhampton","Oyster Online","10.00","Legal Services","4112","Public Transport","02/10/2018"
"Wolverhampton City Council","http://opendatacommunities.org/id/metropolitan-district-council/wolverhampton","J VAN VLIET BIRMINGHAM","27.75","Creative Studies Delivery Area","5399","Materials for resale","02/10/2018"
"Wolverhampton City Council","http://opendatacommunities.org/id/metropolitan-district-council/wolverhampton","ASDA GROCERIES ONLINE","-0.37","Ernest Bold Court","5411","Provisions (Not for resale)","02/10/2018"
"Wolverhampton City Council","http://opendatacommunities.org/id/metropolitan-district-council/wolverhampton","Trainline","176.78","CIN/CP Social Work Unit - Area 5","4112","Section 17","02/10/2018"
"Wolverhampton City Council","http://opendatacommunities.org/id/metropolitan-district-council/wolverhampton","B&M RETAIL LTD","43.30","CIN/CP Social Work Unit - Area 8","5310","Section 17","02/10/2018"
"Wolverhampton City Council","http://opendatacommunities.org/id/metropolitan-district-council/wolverhampton","WEST COAST TRAINS","5.20","Technician","4112","Public Transport","01/10/2018"
"Wolverhampton City Council","http://opendatacommunities.org/id/metropolitan-district-council/wolverhampton","FACEBK KBKBKGEG52","94.34","Visitor Economy - Development","7311","Marketing \ Non-staff advertising","01/10/2018"
"Wolverhampton City Council","http://opendatacommunities.org/id/metropolitan-district-council/wolverhampton","WOLVERHAMPTON CC","5.42","Headstart Phase 3","7523","Parking Fees","01/10/2018"
"Wolverhampton City Council","http://opendatacommunities.org/id/metropolitan-district-council/wolverhampton","IKEA LIMITED","26.46","LAC Transitions Team","5712","Client Allowances","01/10/2018"
"Wolverhampton City Council","http://opendatacommunities.org/id/metropolitan-district-council/wolverhampton","DVLA VEHICLE TAX","317.50","Towers Outdoor Education Centre","9399","Equipment - Purchase","01/10/2018"
"Wolverhampton City Council","http://opendatacommunities.org/id/metropolitan-district-council/wolverhampton","Trainline","78.18","Managing Director","4112","Public Transport","01/10/2018"
"Wolverhampton City Council","http://opendatacommunities.org/id/metropolitan-district-council/wolverhampton","WEST MID TRAVEL","436.90","Banking","4131","Public Transport","01/10/2018"
"Wolverhampton City Council","http://opendatacommunities.org/id/metropolitan-district-council/wolverhampton","CARPET CENTRE LTD","250.00","EIP Locality 4","5713","Grant Payments","01/10/2018"
"Wolverhampton City Council","http://opendatacommunities.org/id/metropolitan-district-council/wolverhampton","WOLVERHAMPTON RACECOUR","4.04","Economic Development","5813","Catering","01/10/2018"
"Wolverhampton City Council","http://opendatacommunities.org/id/metropolitan-district-council/wolverhampton","FACEBK 7KCZ9G2B82","101.94","WV Active Marketing","7311","Marketing \ Non-staff advertising","01/10/2018"
"Wolverhampton City Council","http://opendatacommunities.org/id/metropolitan-district-council/wolverhampton","FACEBK L7EWRHNAR2","10.83","Pupil & Student Support","7311","Marketing \ Non-staff advertising","01/10/2018"
"Wolverhampton City Council","http://opendatacommunities.org/id/metropolitan-district-council/wolverhampton","FACEBK 2DPXRH2AR2","500.00","Communications & Marketing - General","7311","Marketing \ Non-staff advertising","01/10/2018"
"Wolverhampton City Council","http://opendatacommunities.org/id/metropolitan-district-council/wolverhampton","AMZN MKTP UK AMAZON.CO","1.72","WV Active Marketing","5942","Books","01/10/2018"
"Wolverhampton City Council","http://opendatacommunities.org/id/metropolitan-district-council/wolverhampton","WWW.MANCHESTER.GOV.UK","22.00","Adoption and Residence Team & Allowances","7523","Services - Fees and Charges","01/10/2018"
"Wolverhampton City Council","http://opendatacommunities.org/id/metropolitan-district-council/wolverhampton","BCC REGISTER OFFIC","48.50","Adoption and Residence Team & Allowances","9399","Services - Fees and Charges","01/10/2018"
"Wolverhampton City Council","http://opendatacommunities.org/id/metropolitan-district-council/wolverhampton","ITUNES.COM/BILL","0.79","Strategic ICTS (ICT Serv Budget)","5735","Computing - Purchase of Software","01/10/2018"
"Wolverhampton City Council","http://opendatacommunities.org/id/metropolitan-district-council/wolverhampton","PSA Parts","227.50","Strategic ICTS (ICT Serv Budget)","5732","Equipment - Purchase","01/10/2018"
"Wolverhampton City Council","http://opendatacommunities.org/id/metropolitan-district-council/wolverhampton","ASDA GROCERIES ONLINE","-29.10","Upper Pendeford Farm Childrens Home","5411","Provisions (Not for resale)","01/10/2018"
"Wolverhampton City Council","http://opendatacommunities.org/id/metropolitan-district-council/wolverhampton","ASDA GROCERIES ONLINE","-2.20","Upper Pendeford Farm Childrens Home","5411","Provisions (Not for resale)","01/10/2018"
"Wolverhampton City Council","http://opendatacommunities.org/id/metropolitan-district-council/wolverhampton","ASDA GROCERIES ONLINE","64.30","Upper Pendeford Farm Childrens Home","5411","Cleaning Supplies and Materials","01/10/2018"
"Wolverhampton City Council","http://opendatacommunities.org/id/metropolitan-district-council/wolverhampton","FACEBK 4HD6GGAC22","489.42","Service Wide","7311","Marketing \ Non-staff advertising","01/10/2018"
"Wolverhampton City Council","http://opendatacommunities.org/id/metropolitan-district-council/wolverhampton","Amazon.co.uk","205.22","Language Studies Delivery Area","5969","Books","01/10/2018"
"Wolverhampton City Council","http://opendatacommunities.org/id/metropolitan-district-council/wolverhampton","SEVERN TRENT WATER","50.42","LAC Transitions Team","4900","Client Allowances","01/10/2018"
"Wolverhampton City Council","http://opendatacommunities.org/id/metropolitan-district-council/wolverhampton","SQUARESPACE INC.","171.03","Technical Support","7372","Computing - Purchase of Software","01/10/2018"
"Wolverhampton City Council","http://opendatacommunities.org/id/metropolitan-district-council/wolverhampton","ASDA GROCERIES ONLINE","184.86","Upper Pendeford Farm Childrens Home","5411","Provisions (Not for resale)","01/10/2018"
"Wolverhampton City Council","http://opendatacommunities.org/id/metropolitan-district-council/wolverhampton","ASDA GROCERIES ONLINE","-0.23","Ernest Bold Court","5411","Provisions (Not for resale)","01/10/2018"
"Wolverhampton City Council","http://opendatacommunities.org/id/metropolitan-district-council/wolverhampton","ASDA GROCERIES ONLINE","76.02","Ernest Bold Court","5411","Provisions (Not for resale)","01/10/2018"
"Wolverhampton City Council","http://opendatacommunities.org/id/metropolitan-district-council/wolverhampton","ASDA GROCERIES ONLINE","166.35","Duke Street Bungalows","5411","Provisions (Not for resale)","01/10/2018"
"Wolverhampton City Council","http://opendatacommunities.org/id/metropolitan-district-council/wolverhampton","VWG WOLVERHAMPTON TPS","5.03","Fleet Management","5013","Equipment - Purchase","01/10/2018"
"Wolverhampton City Council","http://opendatacommunities.org/id/metropolitan-district-council/wolverhampton","Cross Country Trains","7.60","Customer Services","4112","Public Transport","01/10/2018"
